{"text_format":"1","workbook":"xlsx","n_sheets":7,"sheets":["Voorblad","Voorpagina","Projecten","Acties","Medewerkers","Instellingen","Voorbeeld rapportage"],"not_rendered":{"charts":2,"images":13,"macros":1,"external_links":0,"defined_names":6,"comments":1,"pivot_tables":0},"unopened":[],"bounds":{"document_bytes":16777216,"sheet_cells":100000,"rows_first":2000,"rows_last":500,"rows_between":2000,"halvings":0,"cell_chars":16384,"cell_head_chars":4096},"cells_cut":0,"cells_raw":0,"read":"whole","date_system":"1900"}

{"sheet":"Voorblad","index":0,"n_rows":34,"n_cols":6,"rows_kept":34,"cut":false,"hidden":false,"merged":[[6,1,6,5]]}
[]
[]
[]
[null,"Werkt de bovenstaande knop niet, dan moet je eerst de onderstaande stappen doorlopen om de macro's te deblokkeren."]
[]
[null,"Dit bestand bevat macro's"]
[null,"In nieuwere versies van Excel is door Microsoft een extra beveiliging geplaatst op het openen van bestanden met macro’s. \nNaast dat macro's erg nuttig kunnen zijn worden ze ook misbruikt voor malware en ransomware. Door de macro's standaard te blokkeren wil Microsoft de strijd aan gaan tegen cybercriminaliteit."]
[null,"Dit Exceldocument bevat macro's om een goede werking van het bestand te garanderen. Deblokkeren van het bestand doet u als volgt:"]
[]
[null,"Stap 1. Blokkade opheffen",null,null,"Stap 2. Macro's inschakelen"]
[null,"a.","U moet het bestand opslaan op een lokale harde schijf (of OneDrive). ",null,"Nadat je de blokkering van het Excelbestand hebt opgeheven, is het (vaak) ook nog nodig om de macro’s in te schakelen."]
[null,"b.","Open Windows Verkenner en zoek het bestand op. "]
[null,"c.","Klik vervolgens met de rechtermuisknop op het bestand en kies Eigenschappen in het contextmenu. \nOnderaan het tabblad Algemeen ziet u een sectie Beveiliging. Schakel het selectievakje Blokkering opheffen in. \n",null,"a.","Dit zie je doordat je een pop-up krijgt met de melding: ‘Microsoft Office heeft een mogelijk beveiligingsprobleem geïdentificeerd.’ of door een gele balk bovenin je Excelbestand met daarin de tekst: ‘BEVEILIGINGSWAARSCHUWING \nMacro’s zijn uitgeschakeld.’ Zie ook afbeeldingen 2 en 3."]
[null,null,"En klik op OK. Zie ook afbeelding 1",null,"b.","In deze gevallen kun je de macro’s inschakelen door op de knop ‘Macro’s inschakelen’ te klikken in het pop-up scherm, of \nop de knop ‘Inhoud inschakelen’ in de gele balk"]
[null,null,"Wanneer u nu het bestand (opnieuw) opent zullen de macro's in het bestand werkzaam zijn."]
[null,null,"Afbeelding 1",null,null,"Afbeelding 2                                                                                                    Afbeelding 3"]
[]
[]
[]
[]
[]
[]
[]
[]
[]
[]
[]
[]
[]
[]
[]
[]
[]
[null,"Deze handleiding is ook terug te lezen via deze link."]

{"sheet":"Voorpagina","index":1,"n_rows":18,"n_cols":5,"rows_kept":18,"cut":false,"hidden":false,"merged":[]}
[]
[]
[]
[]
[]
[]
[]
[]
[]
[]
[]
[]
[]
[]
[]
[]
[null,null,null,"*","info@terzake-excel.nl"]
[null,null,null,"(","0317 200 009"]

{"sheet":"Projecten","index":2,"n_rows":36,"n_cols":382,"rows_kept":36,"cut":false,"hidden":false,"merged":[]}
["Sub knopverbergenkolommen()"]
["Application.ScreenUpdating = False","Het is vandaag:",{"$f":"TODAY()","v":"2026-01-06"},null,null,null,null,null,null,null,null,null,null,null,null,{"$f":"TRANSPOSE(Instellingen!H4:H369)","v":202601},202602,202603,202604,202605,202606,202607,202608,202609,202610,202611,202612,202613,202614,202615,202616,202617,202618,202619,202620,202621,202622,202623,202624,202625,202626,202627,202628,202629,202630,202631,202632,202633,202634,202635,202636,202637,202638,202639,202640,202641,202642,202643,202644,202645,202646,202647,202648,202649,202650,202651,202652,202653,202701,202702,202703,202704,202705,202706,202707,202708,202709,202710,202711,202712,202713,202714,202715,202716,202717,202718,202719,202720,202721,202722,202723,202724,202725,202726,202727,202728,202729,202730,202731,202732,202733,202734,202735,202736,202737,202738,202739,202740,202741,202742,202743,202744,202745,202746,202747,202748,202749,202750,202751,202752,202801,202802,202803,202804,202805,202806,202807,202808,202809,202810,202811,202812,202813,202814,202815,202816,202817,202818,202819,202820,202821,202822,202823,202824,202825,202826,202827,202828,202829,202830,202831,202832,202833,202834,202835,202836,202837,202838,202839,202840,202841,202842,202843,202844,202845,202846,202847,202848,202849,202850,202851,202852,202901,202902,202903,202904,202905,202906,202907,202908,202909,202910,202911,202912,202913,202914,202915,202916,202917,202918,202919,202920,202921,202922,202923,202924,202925,202926,202927,202928,202929,202930,202931,202932,202933,202934,202935,202936,202937,202938,202939,202940,202941,202942,202943,202944,202945,202946,202947,202948,202949,202950,202951,202952,203001,203002,203003,203004,203005,203006,203007,203008,203009,203010,203011,203012,203013,203014,203015,203016,203017,203018,203019,203020,203021,203022,203023,203024,203025,203026,203027,203028,203029,203030,203031,203032,203033,203034,203035,203036,203037,203038,203039,203040,203041,203042,203043,203044,203045,203046,203047,203048,203049,203050,203051,203052,203101,203102,203103,203104,203105,203106,203107,203108,203109,203110,203111,203112,203113,203114,203115,203116,203117,203118,203119,203120,203121,203122,203123,203124,203125,203126,203127,203128,203129,203130,203131,203132,203133,203134,203135,203136,203137,203138,203139,203140,203141,203142,203143,203144,203145,203146,203147,203148,203149,203150,203151,203152,203201,203202,203203,203204,203205,203206,203207,203208,203209,203210,203211,203212,203213,203214,203215,203216,203217,203218,203219,203220,203221,203222,203223,203224,203225,203226,203227,203228,203229,203230,203231,203232,203233,203234,203235,203236,203237,203238,203239,203240,203241,203242,203243,203244,203245,203246,203247,203248,203249,203250,203251,203252,203253]
["Application.EnableEvents = False","Tonen in kalender:",2026]
[null,null,null,null,null,null,null,null,null,null,null,null,null,null,null,{"$f":"YEAR(P6)","v":2026},{"$f":"IF(AND(MONTH(Q6)=1,MONTH(P6)=12,OR(Q7=1,Q7=2)),YEAR(Q6),\"\")","v":""},"","","","","","","","","","","","","","","","","","","","","","","","","","","","","","","","","","","","","","","","","","","","","","","","","","","",2027,"","","","","","","","","","","",{"$f":"IF(AND(MONTH(CC6)=1,MONTH(CB6)=12,OR(CC7=1,CC7=2)),YEAR(CC6),\"\")","v":""},"","","","","","","","","","","","","","","","","","","","","","","","","","","","","","","","","","","","","","","",2028,"","","","","","","","","","","","","","","","","","","","","","","",{"$f":"IF(AND(MONTH(EO6)=1,MONTH(EN6)=12,OR(EO7=1,EO7=2)),YEAR(EO6),\"\")","v":""},"","","","","","","","","","","","","","","","","","","","","","","","","","","",2029,"","","","","","","","","","","","","","","","","","","","","","","","","","","","","","","","","","","",{"$f":"IF(AND(MONTH(HA6)=1,MONTH(GZ6)=12,OR(HA7=1,HA7=2)),YEAR(HA6),\"\")","v":""},"","","","","","","","","","","","","","","",2030,"","","","","","","","","","","","","","","","","","","","","","","","","","","","","","","","","","","","","","","","","","","","","","","",{"$f":"IF(AND(MONTH(JM6)=1,MONTH(JL6)=12,OR(JM7=1,JM7=2)),YEAR(JM6),\"\")","v":""},"","","",2031,"","","","","","","","","","","","","","","","","","","","","","","","","","","","","","","","","","","","","","","","","","","","","","","","","","","",2032,"","","","","","","",{"$f":"IF(AND(MONTH(LY6)=1,MONTH(LX6)=12,OR(LY7=1,LY7=2)),YEAR(LY6),\"\")","v":""},"","","","","","","","","","","","","","","","","","","","","","","","","","","","","","","","","","","","","","","","","","","",null,{"$f":"Instellingen!J10+1","v":2033}]
[null,null,null,null,null,null,null,null,null,null,null,null,null,null,null,{"$f":"P6","v":"2026-01-01"},{"$f":"Q6","v":"2026-01-08"},"2026-01-15","2026-01-22","2026-01-29","2026-02-05","2026-02-12","2026-02-19","2026-02-26","2026-03-05","2026-03-12","2026-03-19","2026-03-26",{"$f":"AC6","v":"2026-04-02"},{"$f":"AD6","v":"2026-04-09"},{"$f":"AE6","v":"2026-04-16"},{"$f":"AF6","v":"2026-04-23"},{"$f":"AG6","v":"2026-04-30"},{"$f":"AH6","v":"2026-05-07"},{"$f":"AI6","v":"2026-05-14"},{"$f":"AJ6","v":"2026-05-21"},{"$f":"AK6","v":"2026-05-28"},{"$f":"AL6","v":"2026-06-04"},{"$f":"AM6","v":"2026-06-11"},"2026-06-18",{"$f":"AO6","v":"2026-06-25"},{"$f":"AP6","v":"2026-07-02"},{"$f":"AQ6","v":"2026-07-09"},{"$f":"AR6","v":"2026-07-16"},{"$f":"AS6","v":"2026-07-23"},{"$f":"AT6","v":"2026-07-30"},{"$f":"AU6","v":"2026-08-06"},{"$f":"AV6","v":"2026-08-13"},{"$f":"AW6","v":"2026-08-20"},{"$f":"AX6","v":"2026-08-27"},{"$f":"AY6","v":"2026-09-03"},"2026-09-10",{"$f":"BA6","v":"2026-09-17"},{"$f":"BB6","v":"2026-09-24"},{"$f":"BC6","v":"2026-10-01"},{"$f":"BD6","v":"2026-10-08"},{"$f":"BE6","v":"2026-10-15"},{"$f":"BF6","v":"2026-10-22"},{"$f":"BG6","v":"2026-10-29"},{"$f":"BH6","v":"2026-11-05"},{"$f":"BI6","v":"2026-11-12"},{"$f":"BJ6","v":"2026-11-19"},{"$f":"BK6","v":"2026-11-26"},"2026-12-03",{"$f":"BM6","v":"2026-12-10"},{"$f":"BN6","v":"2026-12-17"},{"$f":"BO6","v":"2026-12-24"},{"$f":"BP6","v":"2026-12-31"},{"$f":"BQ6","v":"2027-01-07"},{"$f":"BR6","v":"2027-01-14"},{"$f":"BS6","v":"2027-01-21"},{"$f":"BT6","v":"2027-01-28"},{"$f":"BU6","v":"2027-02-04"},{"$f":"BV6","v":"2027-02-11"},{"$f":"BW6","v":"2027-02-18"},"2027-02-25",{"$f":"BY6","v":"2027-03-04"},{"$f":"BZ6","v":"2027-03-11"},{"$f":"CA6","v":"2027-03-18"},{"$f":"CB6","v":"2027-03-25"},{"$f":"CC6","v":"2027-04-01"},{"$f":"CD6","v":"2027-04-08"},{"$f":"CE6","v":"2027-04-15"},{"$f":"CF6","v":"2027-04-22"},{"$f":"CG6","v":"2027-04-29"},{"$f":"CH6","v":"2027-05-06"},{"$f":"CI6","v":"2027-05-13"},"2027-05-20",{"$f":"CK6","v":"2027-05-27"},{"$f":"CL6","v":"2027-06-03"},{"$f":"CM6","v":"2027-06-10"},{"$f":"CN6","v":"2027-06-17"},{"$f":"CO6","v":"2027-06-24"},{"$f":"CP6","v":"2027-07-01"},{"$f":"CQ6","v":"2027-07-08"},{"$f":"CR6","v":"2027-07-15"},{"$f":"CS6","v":"2027-07-22"},{"$f":"CT6","v":"2027-07-29"},{"$f":"CU6","v":"2027-08-05"},"2027-08-12",{"$f":"CW6","v":"2027-08-19"},{"$f":"CX6","v":"2027-08-26"},{"$f":"CY6","v":"2027-09-02"},{"$f":"CZ6","v":"2027-09-09"},{"$f":"DA6","v":"2027-09-16"},{"$f":"DB6","v":"2027-09-23"},{"$f":"DC6","v":"2027-09-30"},{"$f":"DD6","v":"2027-10-07"},{"$f":"DE6","v":"2027-10-14"},{"$f":"DF6","v":"2027-10-21"},{"$f":"DG6","v":"2027-10-28"},"2027-11-04",{"$f":"DI6","v":"2027-11-11"},{"$f":"DJ6","v":"2027-11-18"},{"$f":"DK6","v":"2027-11-25"},{"$f":"DL6","v":"2027-12-02"},{"$f":"DM6","v":"2027-12-09"},{"$f":"DN6","v":"2027-12-16"},{"$f":"DO6","v":"2027-12-23"},{"$f":"DP6","v":"2027-12-30"},{"$f":"DQ6","v":"2028-01-06"},{"$f":"DR6","v":"2028-01-13"},{"$f":"DS6","v":"2028-01-20"},"2028-01-27",{"$f":"DU6","v":"2028-02-03"},{"$f":"DV6","v":"2028-02-10"},{"$f":"DW6","v":"2028-02-17"},{"$f":"DX6","v":"2028-02-24"},{"$f":"DY6","v":"2028-03-02"},{"$f":"DZ6","v":"2028-03-09"},{"$f":"EA6","v":"2028-03-16"},{"$f":"EB6","v":"2028-03-23"},{"$f":"EC6","v":"2028-03-30"},{"$f":"ED6","v":"2028-04-06"},{"$f":"EE6","v":"2028-04-13"},"2028-04-20",{"$f":"EG6","v":"2028-04-27"},{"$f":"EH6","v":"2028-05-04"},{"$f":"EI6","v":"2028-05-11"},{"$f":"EJ6","v":"2028-05-18"},{"$f":"EK6","v":"2028-05-25"},{"$f":"EL6","v":"2028-06-01"},{"$f":"EM6","v":"2028-06-08"},{"$f":"EN6","v":"2028-06-15"},{"$f":"EO6","v":"2028-06-22"},{"$f":"EP6","v":"2028-06-29"},{"$f":"EQ6","v":"2028-07-06"},"2028-07-13",{"$f":"ES6","v":"2028-07-20"},{"$f":"ET6","v":"2028-07-27"},{"$f":"EU6","v":"2028-08-03"},{"$f":"EV6","v":"2028-08-10"},{"$f":"EW6","v":"2028-08-17"},{"$f":"EX6","v":"2028-08-24"},{"$f":"EY6","v":"2028-08-31"},{"$f":"EZ6","v":"2028-09-07"},{"$f":"FA6","v":"2028-09-14"},{"$f":"FB6","v":"2028-09-21"},{"$f":"FC6","v":"2028-09-28"},"2028-10-05",{"$f":"FE6","v":"2028-10-12"},{"$f":"FF6","v":"2028-10-19"},{"$f":"FG6","v":"2028-10-26"},{"$f":"FH6","v":"2028-11-02"},{"$f":"FI6","v":"2028-11-09"},{"$f":"FJ6","v":"2028-11-16"},{"$f":"FK6","v":"2028-11-23"},{"$f":"FL6","v":"2028-11-30"},{"$f":"FM6","v":"2028-12-07"},{"$f":"FN6","v":"2028-12-14"},{"$f":"FO6","v":"2028-12-21"},"2028-12-28",{"$f":"FQ6","v":"2029-01-04"},{"$f":"FR6","v":"2029-01-11"},{"$f":"FS6","v":"2029-01-18"},{"$f":"FT6","v":"2029-01-25"},{"$f":"FU6","v":"2029-02-01"},{"$f":"FV6","v":"2029-02-08"},{"$f":"FW6","v":"2029-02-15"},{"$f":"FX6","v":"2029-02-22"},{"$f":"FY6","v":"2029-03-01"},{"$f":"FZ6","v":"2029-03-08"},{"$f":"GA6","v":"2029-03-15"},"2029-03-22",{"$f":"GC6","v":"2029-03-29"},{"$f":"GD6","v":"2029-04-05"},{"$f":"GE6","v":"2029-04-12"},{"$f":"GF6","v":"2029-04-19"},{"$f":"GG6","v":"2029-04-26"},{"$f":"GH6","v":"2029-05-03"},{"$f":"GI6","v":"2029-05-10"},{"$f":"GJ6","v":"2029-05-17"},{"$f":"GK6","v":"2029-05-24"},{"$f":"GL6","v":"2029-05-31"},{"$f":"GM6","v":"2029-06-07"},"2029-06-14",{"$f":"GO6","v":"2029-06-21"},{"$f":"GP6","v":"2029-06-28"},{"$f":"GQ6","v":"2029-07-05"},{"$f":"GR6","v":"2029-07-12"},{"$f":"GS6","v":"2029-07-19"},{"$f":"GT6","v":"2029-07-26"},{"$f":"GU6","v":"2029-08-02"},{"$f":"GV6","v":"2029-08-09"},{"$f":"GW6","v":"2029-08-16"},{"$f":"GX6","v":"2029-08-23"},{"$f":"GY6","v":"2029-08-30"},"2029-09-06",{"$f":"HA6","v":"2029-09-13"},{"$f":"HB6","v":"2029-09-20"},{"$f":"HC6","v":"2029-09-27"},{"$f":"HD6","v":"2029-10-04"},{"$f":"HE6","v":"2029-10-11"},{"$f":"HF6","v":"2029-10-18"},{"$f":"HG6","v":"2029-10-25"},{"$f":"HH6","v":"2029-11-01"},{"$f":"HI6","v":"2029-11-08"},{"$f":"HJ6","v":"2029-11-15"},{"$f":"HK6","v":"2029-11-22"},"2029-11-29",{"$f":"HM6","v":"2029-12-06"},{"$f":"HN6","v":"2029-12-13"},{"$f":"HO6","v":"2029-12-20"},{"$f":"HP6","v":"2029-12-27"},{"$f":"HQ6","v":"2030-01-03"},{"$f":"HR6","v":"2030-01-10"},{"$f":"HS6","v":"2030-01-17"},{"$f":"HT6","v":"2030-01-24"},{"$f":"HU6","v":"2030-01-31"},{"$f":"HV6","v":"2030-02-07"},{"$f":"HW6","v":"2030-02-14"},"2030-02-21",{"$f":"HY6","v":"2030-02-28"},{"$f":"HZ6","v":"2030-03-07"},{"$f":"IA6","v":"2030-03-14"},{"$f":"IB6","v":"2030-03-21"},{"$f":"IC6","v":"2030-03-28"},{"$f":"ID6","v":"2030-04-04"},{"$f":"IE6","v":"2030-04-11"},{"$f":"IF6","v":"2030-04-18"},{"$f":"IG6","v":"2030-04-25"},{"$f":"IH6","v":"2030-05-02"},{"$f":"II6","v":"2030-05-09"},"2030-05-16",{"$f":"IK6","v":"2030-05-23"},{"$f":"IL6","v":"2030-05-30"},{"$f":"IM6","v":"2030-06-06"},{"$f":"IN6","v":"2030-06-13"},{"$f":"IO6","v":"2030-06-20"},{"$f":"IP6","v":"2030-06-27"},{"$f":"IQ6","v":"2030-07-04"},{"$f":"IR6","v":"2030-07-11"},{"$f":"IS6","v":"2030-07-18"},{"$f":"IT6","v":"2030-07-25"},{"$f":"IU6","v":"2030-08-01"},"2030-08-08",{"$f":"IW6","v":"2030-08-15"},{"$f":"IX6","v":"2030-08-22"},{"$f":"IY6","v":"2030-08-29"},{"$f":"IZ6","v":"2030-09-05"},{"$f":"JA6","v":"2030-09-12"},{"$f":"JB6","v":"2030-09-19"},{"$f":"JC6","v":"2030-09-26"},{"$f":"JD6","v":"2030-10-03"},{"$f":"JE6","v":"2030-10-10"},{"$f":"JF6","v":"2030-10-17"},{"$f":"JG6","v":"2030-10-24"},"2030-10-31",{"$f":"JI6","v":"2030-11-07"},{"$f":"JJ6","v":"2030-11-14"},{"$f":"JK6","v":"2030-11-21"},{"$f":"JL6","v":"2030-11-28"},{"$f":"JM6","v":"2030-12-05"},{"$f":"JN6","v":"2030-12-12"},{"$f":"JO6","v":"2030-12-19"},{"$f":"JP6","v":"2030-12-26"},{"$f":"JQ6","v":"2031-01-02"},{"$f":"JR6","v":"2031-01-09"},{"$f":"JS6","v":"2031-01-16"},"2031-01-23",{"$f":"JU6","v":"2031-01-30"},{"$f":"JV6","v":"2031-02-06"},{"$f":"JW6","v":"2031-02-13"},{"$f":"JX6","v":"2031-02-20"},{"$f":"JY6","v":"2031-02-27"},{"$f":"JZ6","v":"2031-03-06"},{"$f":"KA6","v":"2031-03-13"},{"$f":"KB6","v":"2031-03-20"},{"$f":"KC6","v":"2031-03-27"},{"$f":"KD6","v":"2031-04-03"},{"$f":"KE6","v":"2031-04-10"},"2031-04-17",{"$f":"KG6","v":"2031-04-24"},{"$f":"KH6","v":"2031-05-01"},{"$f":"KI6","v":"2031-05-08"},{"$f":"KJ6","v":"2031-05-15"},{"$f":"KK6","v":"2031-05-22"},{"$f":"KL6","v":"2031-05-29"},{"$f":"KM6","v":"2031-06-05"},{"$f":"KN6","v":"2031-06-12"},{"$f":"KO6","v":"2031-06-19"},{"$f":"KP6","v":"2031-06-26"},{"$f":"KQ6","v":"2031-07-03"},"2031-07-10",{"$f":"KS6","v":"2031-07-17"},{"$f":"KT6","v":"2031-07-24"},{"$f":"KU6","v":"2031-07-31"},{"$f":"KV6","v":"2031-08-07"},{"$f":"KW6","v":"2031-08-14"},{"$f":"KX6","v":"2031-08-21"},{"$f":"KY6","v":"2031-08-28"},{"$f":"KZ6","v":"2031-09-04"},{"$f":"LA6","v":"2031-09-11"},{"$f":"LB6","v":"2031-09-18"},{"$f":"LC6","v":"2031-09-25"},"2031-10-02",{"$f":"LE6","v":"2031-10-09"},{"$f":"LF6","v":"2031-10-16"},{"$f":"LG6","v":"2031-10-23"},{"$f":"LH6","v":"2031-10-30"},{"$f":"LI6","v":"2031-11-06"},{"$f":"LJ6","v":"2031-11-13"},{"$f":"LK6","v":"2031-11-20"},{"$f":"LL6","v":"2031-11-27"},{"$f":"LM6","v":"2031-12-04"},{"$f":"LN6","v":"2031-12-11"},{"$f":"LO6","v":"2031-12-18"},"2031-12-25",{"$f":"LQ6","v":"2032-01-01"},{"$f":"LR6","v":"2032-01-08"},{"$f":"LS6","v":"2032-01-15"},{"$f":"LT6","v":"2032-01-22"},{"$f":"LU6","v":"2032-01-29"},{"$f":"LV6","v":"2032-02-05"},{"$f":"LW6","v":"2032-02-12"},{"$f":"LX6","v":"2032-02-19"},{"$f":"LY6","v":"2032-02-26"},{"$f":"LZ6","v":"2032-03-04"},{"$f":"MA6","v":"2032-03-11"},"2032-03-18",{"$f":"MC6","v":"2032-03-25"},{"$f":"MD6","v":"2032-04-01"},{"$f":"ME6","v":"2032-04-08"},{"$f":"MF6","v":"2032-04-15"},{"$f":"MG6","v":"2032-04-22"},{"$f":"MH6","v":"2032-04-29"},{"$f":"MI6","v":"2032-05-06"},{"$f":"MJ6","v":"2032-05-13"},{"$f":"MK6","v":"2032-05-20"},{"$f":"ML6","v":"2032-05-27"},{"$f":"MM6","v":"2032-06-03"},"2032-06-10",{"$f":"MO6","v":"2032-06-17"},{"$f":"MP6","v":"2032-06-24"},{"$f":"MQ6","v":"2032-07-01"},{"$f":"MR6","v":"2032-07-08"},{"$f":"MS6","v":"2032-07-15"},{"$f":"MT6","v":"2032-07-22"},{"$f":"MU6","v":"2032-07-29"},{"$f":"MV6","v":"2032-08-05"},{"$f":"MW6","v":"2032-08-12"},{"$f":"MX6","v":"2032-08-19"},{"$f":"MY6","v":"2032-08-26"},"2032-09-02",{"$f":"NA6","v":"2032-09-09"},{"$f":"NB6","v":"2032-09-16"},{"$f":"NC6","v":"2032-09-23"},{"$f":"ND6","v":"2032-09-30"},{"$f":"NE6","v":"2032-10-07"},{"$f":"NF6","v":"2032-10-14"},{"$f":"NG6","v":"2032-10-21"},{"$f":"NH6","v":"2032-10-28"},{"$f":"NI6","v":"2032-11-04"},{"$f":"NJ6","v":"2032-11-11"},{"$f":"NK6","v":"2032-11-18"},"2032-11-25",{"$f":"NM6","v":"2032-12-02"},{"$f":"NN6","v":"2032-12-09"},{"$f":"NO6","v":"2032-12-16"},{"$f":"NP6","v":"2032-12-23"},"2032-12-30"]
["    Columns(\"F:K\").Select",null,null,null,null,null,null,null,null,null,null,null,null,null,null,{"$f":"TRANSPOSE(Instellingen!N4:N369)","v":"2026-01-01"},"2026-01-08","2026-01-15","2026-01-22","2026-01-29","2026-02-05","2026-02-12","2026-02-19","2026-02-26","2026-03-05","2026-03-12","2026-03-19","2026-03-26","2026-04-02","2026-04-09","2026-04-16","2026-04-23","2026-04-30","2026-05-07","2026-05-14","2026-05-21","2026-05-28","2026-06-04","2026-06-11","2026-06-18","2026-06-25","2026-07-02","2026-07-09","2026-07-16","2026-07-23","2026-07-30","2026-08-06","2026-08-13","2026-08-20","2026-08-27","2026-09-03","2026-09-10","2026-09-17","2026-09-24","2026-10-01","2026-10-08","2026-10-15","2026-10-22","2026-10-29","2026-11-05","2026-11-12","2026-11-19","2026-11-26","2026-12-03","2026-12-10","2026-12-17","2026-12-24","2026-12-31","2027-01-07","2027-01-14","2027-01-21","2027-01-28","2027-02-04","2027-02-11","2027-02-18","2027-02-25","2027-03-04","2027-03-11","2027-03-18","2027-03-25","2027-04-01","2027-04-08","2027-04-15","2027-04-22","2027-04-29","2027-05-06","2027-05-13","2027-05-20","2027-05-27","2027-06-03","2027-06-10","2027-06-17","2027-06-24","2027-07-01","2027-07-08","2027-07-15","2027-07-22","2027-07-29","2027-08-05","2027-08-12","2027-08-19","2027-08-26","2027-09-02","2027-09-09","2027-09-16","2027-09-23","2027-09-30","2027-10-07","2027-10-14","2027-10-21","2027-10-28","2027-11-04","2027-11-11","2027-11-18","2027-11-25","2027-12-02","2027-12-09","2027-12-16","2027-12-23","2027-12-30","2028-01-06","2028-01-13","2028-01-20","2028-01-27","2028-02-03","2028-02-10","2028-02-17","2028-02-24","2028-03-02","2028-03-09","2028-03-16","2028-03-23","2028-03-30","2028-04-06","2028-04-13","2028-04-20","2028-04-27","2028-05-04","2028-05-11","2028-05-18","2028-05-25","2028-06-01","2028-06-08","2028-06-15","2028-06-22","2028-06-29","2028-07-06","2028-07-13","2028-07-20","2028-07-27","2028-08-03","2028-08-10","2028-08-17","2028-08-24","2028-08-31","2028-09-07","2028-09-14","2028-09-21","2028-09-28","2028-10-05","2028-10-12","2028-10-19","2028-10-26","2028-11-02","2028-11-09","2028-11-16","2028-11-23","2028-11-30","2028-12-07","2028-12-14","2028-12-21","2028-12-28","2029-01-04","2029-01-11","2029-01-18","2029-01-25","2029-02-01","2029-02-08","2029-02-15","2029-02-22","2029-03-01","2029-03-08","2029-03-15","2029-03-22","2029-03-29","2029-04-05","2029-04-12","2029-04-19","2029-04-26","2029-05-03","2029-05-10","2029-05-17","2029-05-24","2029-05-31","2029-06-07","2029-06-14","2029-06-21","2029-06-28","2029-07-05","2029-07-12","2029-07-19","2029-07-26","2029-08-02","2029-08-09","2029-08-16","2029-08-23","2029-08-30","2029-09-06","2029-09-13","2029-09-20","2029-09-27","2029-10-04","2029-10-11","2029-10-18","2029-10-25","2029-11-01","2029-11-08","2029-11-15","2029-11-22","2029-11-29","2029-12-06","2029-12-13","2029-12-20","2029-12-27","2030-01-03","2030-01-10","2030-01-17","2030-01-24","2030-01-31","2030-02-07","2030-02-14","2030-02-21","2030-02-28","2030-03-07","2030-03-14","2030-03-21","2030-03-28","2030-04-04","2030-04-11","2030-04-18","2030-04-25","2030-05-02","2030-05-09","2030-05-16","2030-05-23","2030-05-30","2030-06-06","2030-06-13","2030-06-20","2030-06-27","2030-07-04","2030-07-11","2030-07-18","2030-07-25","2030-08-01","2030-08-08","2030-08-15","2030-08-22","2030-08-29","2030-09-05","2030-09-12","2030-09-19","2030-09-26","2030-10-03","2030-10-10","2030-10-17","2030-10-24","2030-10-31","2030-11-07","2030-11-14","2030-11-21","2030-11-28","2030-12-05","2030-12-12","2030-12-19","2030-12-26","2031-01-02","2031-01-09","2031-01-16","2031-01-23","2031-01-30","2031-02-06","2031-02-13","2031-02-20","2031-02-27","2031-03-06","2031-03-13","2031-03-20","2031-03-27","2031-04-03","2031-04-10","2031-04-17","2031-04-24","2031-05-01","2031-05-08","2031-05-15","2031-05-22","2031-05-29","2031-06-05","2031-06-12","2031-06-19","2031-06-26","2031-07-03","2031-07-10","2031-07-17","2031-07-24","2031-07-31","2031-08-07","2031-08-14","2031-08-21","2031-08-28","2031-09-04","2031-09-11","2031-09-18","2031-09-25","2031-10-02","2031-10-09","2031-10-16","2031-10-23","2031-10-30","2031-11-06","2031-11-13","2031-11-20","2031-11-27","2031-12-04","2031-12-11","2031-12-18","2031-12-25","2032-01-01","2032-01-08","2032-01-15","2032-01-22","2032-01-29","2032-02-05","2032-02-12","2032-02-19","2032-02-26","2032-03-04","2032-03-11","2032-03-18","2032-03-25","2032-04-01","2032-04-08","2032-04-15","2032-04-22","2032-04-29","2032-05-06","2032-05-13","2032-05-20","2032-05-27","2032-06-03","2032-06-10","2032-06-17","2032-06-24","2032-07-01","2032-07-08","2032-07-15","2032-07-22","2032-07-29","2032-08-05","2032-08-12","2032-08-19","2032-08-26","2032-09-02","2032-09-09","2032-09-16","2032-09-23","2032-09-30","2032-10-07","2032-10-14","2032-10-21","2032-10-28","2032-11-04","2032-11-11","2032-11-18","2032-11-25","2032-12-02","2032-12-09","2032-12-16","2032-12-23","2032-12-30"]
["    Selection.EntireColumn.Hidden = True","Projectnaam","Opdrachtgever","Startdatum (week)","Einddatum (week)","Status","Verantwoordelijke","Uren budget","Uren ingepland ","Kosten","Opmerkingen",null,null,"Startdatum","Einddatum ",{"$f":"_xlfn.ISOWEEKNUM(P6)","v":1},{"$f":"_xlfn.ISOWEEKNUM(Q6)","v":2},3,4,5,6,7,8,9,10,11,12,13,14,15,16,17,18,19,20,21,22,23,24,25,26,27,28,29,30,31,32,33,34,35,36,37,38,39,40,41,42,43,44,45,46,47,48,49,50,51,52,53,1,2,3,4,5,6,7,8,9,10,11,12,{"$f":"_xlfn.ISOWEEKNUM(CC6)","v":13},14,15,16,17,18,19,20,21,22,23,24,25,26,27,28,29,30,31,32,33,34,35,36,37,38,39,40,41,42,43,44,45,46,47,48,49,50,51,52,1,2,3,4,5,6,7,8,9,10,11,12,13,14,15,16,17,18,19,20,21,22,23,24,{"$f":"_xlfn.ISOWEEKNUM(EO6)","v":25},26,27,28,29,30,31,32,33,34,35,36,37,38,39,40,41,42,43,44,45,46,47,48,49,50,51,52,1,2,3,4,5,6,7,8,9,10,11,12,13,14,15,16,17,18,19,20,21,22,23,24,25,26,27,28,29,30,31,32,33,34,35,36,{"$f":"_xlfn.ISOWEEKNUM(HA6)","v":37},38,39,40,41,42,43,44,45,46,47,48,49,50,51,52,1,2,3,4,5,6,7,8,9,10,11,12,13,14,15,16,17,18,19,20,21,22,23,24,25,26,27,28,29,30,31,32,33,34,35,36,37,38,39,40,41,42,43,44,45,46,47,48,{"$f":"_xlfn.ISOWEEKNUM(JM6)","v":49},50,51,52,1,2,3,4,5,6,7,8,9,10,11,12,13,14,15,16,17,18,19,20,21,22,23,24,25,26,27,28,29,30,31,32,33,34,35,36,37,38,39,40,41,42,43,44,45,46,47,48,49,50,51,52,1,2,3,4,5,6,7,8,{"$f":"_xlfn.ISOWEEKNUM(LY6)","v":9},10,11,12,13,14,15,16,17,18,19,20,21,22,23,24,25,26,27,28,29,30,31,32,33,34,35,36,37,38,39,40,41,42,43,44,45,46,47,48,49,50,51,{"$f":"_xlfn.ISOWEEKNUM(NP6)","v":52},{"$f":"_xlfn.ISOWEEKNUM(NQ6)","v":53}]
[]
[]
[]
["Projecten.Activate"]
[]
["Projecten.Cells(1, 1).Select"]
["vergrendelen"]
["Application.ScreenUpdating = True"]
["Application.EnableEvents = True"]
[]
["End Sub"]
[]
["Sub knoptonenkolommen()"]
["Application.ScreenUpdating = False"]
["Application.EnableEvents = False"]
["ontgrendelen"]
[]
["    Columns(\"F:K\").Select"]
["    Selection.EntireColumn.Hidden = False"]
[]
[]
[]
["Projecten.Activate"]
[]
["Projecten.Cells(1, 1).Select"]
["vergrendelen"]
["Application.ScreenUpdating = True"]
["Application.EnableEvents = True"]
["End Sub"]

{"sheet":"Acties","index":3,"n_rows":998,"n_cols":21,"rows_kept":998,"cut":false,"hidden":false,"merged":[]}
[]
[]
[null,"Projectnaam","Actie","Startdatum (week)","Einddatum (week)","Status","Verantwoordelijke","Uitvoerende 1","Uren","Uitvoerende 2","Uren","Uitvoerende 3","Uren","Uitvoerende 4","Uren","Uitvoerende 5","Uren","Uren actie","Kosten",null,"Som"]
[null,null,null,null,null,null,null,null,null,null,null,null,null,null,null,null,null,null,null,null,{"$f":"I4+K4+M4+O4+Q4","v":0}]
[null,null,null,null,null,null,null,null,null,null,null,null,null,null,null,null,null,null,null,null,{"$f":"I5+K5+M5+O5+Q5","v":0}]
[null,null,null,null,null,null,null,null,null,null,null,null,null,null,null,null,null,null,null,null,0]
[null,null,null,null,null,null,null,null,null,null,null,null,null,null,null,null,null,null,null,null,0]
[null,null,null,null,null,null,null,null,null,null,null,null,null,null,null,null,null,null,null,null,0]
[null,null,null,null,null,null,null,"",null,null,null,null,null,null,null,null,null,null,null,null,0]
[null,null,null,null,null,null,null,null,null,null,null,null,null,null,null,null,null,null,null,null,0]
[null,null,null,null,null,null,null,null,null,null,null,null,null,null,null,null,null,null,null,null,0]
[null,null,null,null,null,null,null,null,null,null,null,null,null,null,null,null,null,null,null,null,0]
[null,null,null,null,null,null,null,null,null,null,null,null,null,null,null,null,null,null,null,null,0]
[null,null,null,null,null,null,null,null,null,null,null,null,null,null,null,null,null,null,null,null,0]
[null,null,null,null,null,null,null,null,null,null,null,null,null,null,null,null,null,null,null,null,0]
[null,null,null,null,null,null,null,null,null,null,null,null,null,null,null,null,null,null,null,null,0]
[null,null,null,null,null,null,null,null,null,null,null,null,null,null,null,null,null,null,null,null,0]
[null,null,null,null,null,null,null,null,null,null,null,null,null,null,null,null,null,null,null,null,0]
[null,null,null,null,null,null,null,null,null,null,null,null,null,null,null,null,null,null,null,null,0]
[null,null,null,null,null,null,null,null,null,null,null,null,null,null,null,null,null,null,null,null,0]
[null,null,null,null,null,null,null,null,null,null,null,null,null,null,null,null,null,null,null,null,0]
[null,null,null,null,null,null,null,null,null,null,null,null,null,null,null,null,null,null,null,null,0]
[null,null,null,null,null,null,null,null,null,null,null,null,null,null,null,null,null,null,null,null,0]
[null,null,null,null,null,null,null,null,null,null,null,null,null,null,null,null,null,null,null,null,0]
[null,null,null,null,null,null,null,null,null,null,null,null,null,null,null,null,null,null,null,null,0]
[null,null,null,null,null,null,null,null,null,null,null,null,null,null,null,null,null,null,null,null,0]
[null,null,null,null,null,null,null,null,null,null,null,null,null,null,null,null,null,null,null,null,0]
[null,null,null,null,null,null,null,null,null,null,null,null,null,null,null,null,null,null,null,null,0]
[null,null,null,null,null,null,null,null,null,null,null,null,null,null,null,null,null,null,null,null,0]
[null,null,null,null,null,null,null,null,null,null,null,null,null,null,null,null,null,null,null,null,0]
[null,null,null,null,null,null,null,null,null,null,null,null,null,null,null,null,null,null,null,null,0]
[null,null,null,null,null,null,null,null,null,null,null,null,null,null,null,null,null,null,null,null,0]
[null,null,null,null,null,null,null,null,null,null,null,null,null,null,null,null,null,null,null,null,0]
[null,null,null,null,null,null,null,null,null,null,null,null,null,null,null,null,null,null,null,null,0]
[null,null,null,null,null,null,null,null,null,null,null,null,null,null,null,null,null,null,null,null,0]
[null,null,null,null,null,null,null,null,null,null,null,null,null,null,null,null,null,null,null,null,0]
[null,null,null,null,null,null,null,null,null,null,null,null,null,null,null,null,null,null,null,null,0]
[null,null,null,null,null,null,null,null,null,null,null,null,null,null,null,null,null,null,null,null,0]
[null,null,null,null,null,null,null,null,null,null,null,null,null,null,null,null,null,null,null,null,0]
[null,null,null,null,null,null,null,null,null,null,null,null,null,null,null,null,null,null,null,null,0]
[null,null,null,null,null,null,null,null,null,null,null,null,null,null,null,null,null,null,null,null,0]
[null,null,null,null,null,null,null,null,null,null,null,null,null,null,null,null,null,null,null,null,0]
[null,null,null,null,null,null,null,null,null,null,null,null,null,null,null,null,null,null,null,null,0]
[null,null,null,null,null,null,null,null,null,null,null,null,null,null,null,null,null,null,null,null,0]
[null,null,null,null,null,null,null,null,null,null,null,null,null,null,null,null,null,null,null,null,0]
[null,null,null,null,null,null,null,null,null,null,null,null,null,null,null,null,null,null,null,null,0]
[null,null,null,null,null,null,null,null,null,null,null,null,null,null,null,null,null,null,null,null,0]
[null,null,null,null,null,null,null,null,null,null,null,null,null,null,null,null,null,null,null,null,0]
[null,null,null,null,null,null,null,null,null,null,null,null,null,null,null,null,null,null,null,null,0]
[null,null,null,null,null,null,null,null,null,null,null,null,null,null,null,null,null,null,null,null,0]
[null,null,null,null,null,null,null,null,null,null,null,null,null,null,null,null,null,null,null,null,0]
[null,null,null,null,null,null,null,null,null,null,null,null,null,null,null,null,null,null,null,null,0]
[null,null,null,null,null,null,null,null,null,null,null,null,null,null,null,null,null,null,null,null,0]
[null,null,null,null,null,null,null,null,null,null,null,null,null,null,null,null,null,null,null,null,0]
[null,null,null,null,null,null,null,null,null,null,null,null,null,null,null,null,null,null,null,null,0]
[null,null,null,null,null,null,null,null,null,null,null,null,null,null,null,null,null,null,null,null,0]
[null,null,null,null,null,null,null,null,null,null,null,null,null,null,null,null,null,null,null,null,0]
[null,null,null,null,null,null,null,null,null,null,null,null,null,null,null,null,null,null,null,null,0]
[null,null,null,null,null,null,null,null,null,null,null,null,null,null,null,null,null,null,null,null,0]
[null,null,null,null,null,null,null,null,null,null,null,null,null,null,null,null,null,null,null,null,0]
[null,null,null,null,null,null,null,null,null,null,null,null,null,null,null,null,null,null,null,null,0]
[null,null,null,null,null,null,null,null,null,null,null,null,null,null,null,null,null,null,null,null,0]
[null,null,null,null,null,null,null,null,null,null,null,null,null,null,null,null,null,null,null,null,0]
[null,null,null,null,null,null,null,null,null,null,null,null,null,null,null,null,null,null,null,null,0]
[null,null,null,null,null,null,null,null,null,null,null,null,null,null,null,null,null,null,null,null,0]
[null,null,null,null,null,null,null,null,null,null,null,null,null,null,null,null,null,null,null,null,0]
[null,null,null,null,null,null,null,null,null,null,null,null,null,null,null,null,null,null,null,null,0]
[null,null,null,null,null,null,null,null,null,null,null,null,null,null,null,null,null,null,null,null,0]
[null,null,null,null,null,null,null,null,null,null,null,null,null,null,null,null,null,null,null,null,{"$f":"I69+K69+M69+O69+Q69","v":0}]
[null,null,null,null,null,null,null,null,null,null,null,null,null,null,null,null,null,null,null,null,0]
[null,null,null,null,null,null,null,null,null,null,null,null,null,null,null,null,null,null,null,null,0]
[null,null,null,null,null,null,null,null,null,null,null,null,null,null,null,null,null,null,null,null,0]
[null,null,null,null,null,null,null,null,null,null,null,null,null,null,null,null,null,null,null,null,0]
[null,null,null,null,null,null,null,null,null,null,null,null,null,null,null,null,null,null,null,null,0]
[null,null,null,null,null,null,null,null,null,null,null,null,null,null,null,null,null,null,null,null,0]
[null,null,null,null,null,null,null,null,null,null,null,null,null,null,null,null,null,null,null,null,0]
[null,null,null,null,null,null,null,null,null,null,null,null,null,null,null,null,null,null,null,null,0]
[null,null,null,null,null,null,null,null,null,null,null,null,null,null,null,null,null,null,null,null,0]
[null,null,null,null,null,null,null,null,null,null,null,null,null,null,null,null,null,null,null,null,0]
[null,null,null,null,null,null,null,null,null,null,null,null,null,null,null,null,null,null,null,null,0]
[null,null,null,null,null,null,null,null,null,null,null,null,null,null,null,null,null,null,null,null,0]
[null,null,null,null,null,null,null,null,null,null,null,null,null,null,null,null,null,null,null,null,0]
[null,null,null,null,null,null,null,null,null,null,null,null,null,null,null,null,null,null,null,null,0]
[null,null,null,null,null,null,null,null,null,null,null,null,null,null,null,null,null,null,null,null,0]
[null,null,null,null,null,null,null,null,null,null,null,null,null,null,null,null,null,null,null,null,0]
[null,null,null,null,null,null,null,null,null,null,null,null,null,null,null,null,null,null,null,null,0]
[null,null,null,null,null,null,null,null,null,null,null,null,null,null,null,null,null,null,null,null,0]
[null,null,null,null,null,null,null,null,null,null,null,null,null,null,null,null,null,null,null,null,0]
[null,null,null,null,null,null,null,null,null,null,null,null,null,null,null,null,null,null,null,null,0]
[null,null,null,null,null,null,null,null,null,null,null,null,null,null,null,null,null,null,null,null,0]
[null,null,null,null,null,null,null,null,null,null,null,null,null,null,null,null,null,null,null,null,0]
[null,null,null,null,null,null,null,null,null,null,null,null,null,null,null,null,null,null,null,null,0]
[null,null,null,null,null,null,null,null,null,null,null,null,null,null,null,null,null,null,null,null,0]
[null,null,null,null,null,null,null,null,null,null,null,null,null,null,null,null,null,null,null,null,0]
[null,null,null,null,null,null,null,null,null,null,null,null,null,null,null,null,null,null,null,null,0]
[null,null,null,null,null,null,null,null,null,null,null,null,null,null,null,null,null,null,null,null,0]
[null,null,null,null,null,null,null,null,null,null,null,null,null,null,null,null,null,null,null,null,0]
[null,null,null,null,null,null,null,null,null,null,null,null,null,null,null,null,null,null,null,null,0]
[null,null,null,null,null,null,null,null,null,null,null,null,null,null,null,null,null,null,null,null,0]
[null,null,null,null,null,null,null,null,null,null,null,null,null,null,null,null,null,null,null,null,0]
[null,null,null,null,null,null,null,null,null,null,null,null,null,null,null,null,null,null,null,null,0]
[null,null,null,null,null,null,null,null,null,null,null,null,null,null,null,null,null,null,null,null,0]
[null,null,null,null,null,null,null,null,null,null,null,null,null,null,null,null,null,null,null,null,0]
[null,null,null,null,null,null,null,null,null,null,null,null,null,null,null,null,null,null,null,null,0]
[null,null,null,null,null,null,null,null,null,null,null,null,null,null,null,null,null,null,null,null,0]
[null,null,null,null,null,null,null,null,null,null,null,null,null,null,null,null,null,null,null,null,0]
[null,null,null,null,null,null,null,null,null,null,null,null,null,null,null,null,null,null,null,null,0]
[null,null,null,null,null,null,null,null,null,null,null,null,null,null,null,null,null,null,null,null,0]
[null,null,null,null,null,null,null,null,null,null,null,null,null,null,null,null,null,null,null,null,0]
[null,null,null,null,null,null,null,null,null,null,null,null,null,null,null,null,null,null,null,null,0]
[null,null,null,null,null,null,null,null,null,null,null,null,null,null,null,null,null,null,null,null,0]
[null,null,null,null,null,null,null,null,null,null,null,null,null,null,null,null,null,null,null,null,0]
[null,null,null,null,null,null,null,null,null,null,null,null,null,null,null,null,null,null,null,null,0]
[null,null,null,null,null,null,null,null,null,null,null,null,null,null,null,null,null,null,null,null,0]
[null,null,null,null,null,null,null,null,null,null,null,null,null,null,null,null,null,null,null,null,0]
[null,null,null,null,null,null,null,null,null,null,null,null,null,null,null,null,null,null,null,null,0]
[null,null,null,null,null,null,null,null,null,null,null,null,null,null,null,null,null,null,null,null,0]
[null,null,null,null,null,null,null,null,null,null,null,null,null,null,null,null,null,null,null,null,0]
[null,null,null,null,null,null,null,null,null,null,null,null,null,null,null,null,null,null,null,null,0]
[null,null,null,null,null,null,null,null,null,null,null,null,null,null,null,null,null,null,null,null,0]
[null,null,null,null,null,null,null,null,null,null,null,null,null,null,null,null,null,null,null,null,0]
[null,null,null,null,null,null,null,null,null,null,null,null,null,null,null,null,null,null,null,null,0]
[null,null,null,null,null,null,null,null,null,null,null,null,null,null,null,null,null,null,null,null,0]
[null,null,null,null,null,null,null,null,null,null,null,null,null,null,null,null,null,null,null,null,0]
[null,null,null,null,null,null,null,null,null,null,null,null,null,null,null,null,null,null,null,null,0]
[null,null,null,null,null,null,null,null,null,null,null,null,null,null,null,null,null,null,null,null,0]
[null,null,null,null,null,null,null,null,null,null,null,null,null,null,null,null,null,null,null,null,0]
[null,null,null,null,null,null,null,null,null,null,null,null,null,null,null,null,null,null,null,null,0]
[null,null,null,null,null,null,null,null,null,null,null,null,null,null,null,null,null,null,null,null,0]
[null,null,null,null,null,null,null,null,null,null,null,null,null,null,null,null,null,null,null,null,0]
[null,null,null,null,null,null,null,null,null,null,null,null,null,null,null,null,null,null,null,null,0]
[null,null,null,null,null,null,null,null,null,null,null,null,null,null,null,null,null,null,null,null,0]
[null,null,null,null,null,null,null,null,null,null,null,null,null,null,null,null,null,null,null,null,{"$f":"I133+K133+M133+O133+Q133","v":0}]
[null,null,null,null,null,null,null,null,null,null,null,null,null,null,null,null,null,null,null,null,0]
[null,null,null,null,null,null,null,null,null,null,null,null,null,null,null,null,null,null,null,null,0]
[null,null,null,null,null,null,null,null,null,null,null,null,null,null,null,null,null,null,null,null,0]
[null,null,null,null,null,null,null,null,null,null,null,null,null,null,null,null,null,null,null,null,0]
[null,null,null,null,null,null,null,null,null,null,null,null,null,null,null,null,null,null,null,null,0]
[null,null,null,null,null,null,null,null,null,null,null,null,null,null,null,null,null,null,null,null,0]
[null,null,null,null,null,null,null,null,null,null,null,null,null,null,null,null,null,null,null,null,0]
[null,null,null,null,null,null,null,null,null,null,null,null,null,null,null,null,null,null,null,null,0]
[null,null,null,null,null,null,null,null,null,null,null,null,null,null,null,null,null,null,null,null,0]
[null,null,null,null,null,null,null,null,null,null,null,null,null,null,null,null,null,null,null,null,0]
[null,null,null,null,null,null,null,null,null,null,null,null,null,null,null,null,null,null,null,null,0]
[null,null,null,null,null,null,null,null,null,null,null,null,null,null,null,null,null,null,null,null,0]
[null,null,null,null,null,null,null,null,null,null,null,null,null,null,null,null,null,null,null,null,0]
[null,null,null,null,null,null,null,null,null,null,null,null,null,null,null,null,null,null,null,null,0]
[null,null,null,null,null,null,null,null,null,null,null,null,null,null,null,null,null,null,null,null,0]
[null,null,null,null,null,null,null,null,null,null,null,null,null,null,null,null,null,null,null,null,0]
[null,null,null,null,null,null,null,null,null,null,null,null,null,null,null,null,null,null,null,null,0]
[null,null,null,null,null,null,null,null,null,null,null,null,null,null,null,null,null,null,null,null,0]
[null,null,null,null,null,null,null,null,null,null,null,null,null,null,null,null,null,null,null,null,0]
[null,null,null,null,null,null,null,null,null,null,null,null,null,null,null,null,null,null,null,null,0]
[null,null,null,null,null,null,null,null,null,null,null,null,null,null,null,null,null,null,null,null,0]
[null,null,null,null,null,null,null,null,null,null,null,null,null,null,null,null,null,null,null,null,0]
[null,null,null,null,null,null,null,null,null,null,null,null,null,null,null,null,null,null,null,null,0]
[null,null,null,null,null,null,null,null,null,null,null,null,null,null,null,null,null,null,null,null,0]
[null,null,null,null,null,null,null,null,null,null,null,null,null,null,null,null,null,null,null,null,0]
[null,null,null,null,null,null,null,null,null,null,null,null,null,null,null,null,null,null,null,null,0]
[null,null,null,null,null,null,null,null,null,null,null,null,null,null,null,null,null,null,null,null,0]
[null,null,null,null,null,null,null,null,null,null,null,null,null,null,null,null,null,null,null,null,0]
[null,null,null,null,null,null,null,null,null,null,null,null,null,null,null,null,null,null,null,null,0]
[null,null,null,null,null,null,null,null,null,null,null,null,null,null,null,null,null,null,null,null,0]
[null,null,null,null,null,null,null,null,null,null,null,null,null,null,null,null,null,null,null,null,0]
[null,null,null,null,null,null,null,null,null,null,null,null,null,null,null,null,null,null,null,null,0]
[null,null,null,null,null,null,null,null,null,null,null,null,null,null,null,null,null,null,null,null,0]
[null,null,null,null,null,null,null,null,null,null,null,null,null,null,null,null,null,null,null,null,0]
[null,null,null,null,null,null,null,null,null,null,null,null,null,null,null,null,null,null,null,null,0]
[null,null,null,null,null,null,null,null,null,null,null,null,null,null,null,null,null,null,null,null,0]
[null,null,null,null,null,null,null,null,null,null,null,null,null,null,null,null,null,null,null,null,0]
[null,null,null,null,null,null,null,null,null,null,null,null,null,null,null,null,null,null,null,null,0]
[null,null,null,null,null,null,null,null,null,null,null,null,null,null,null,null,null,null,null,null,0]
[null,null,null,null,null,null,null,null,null,null,null,null,null,null,null,null,null,null,null,null,0]
[null,null,null,null,null,null,null,null,null,null,null,null,null,null,null,null,null,null,null,null,0]
[null,null,null,null,null,null,null,null,null,null,null,null,null,null,null,null,null,null,null,null,0]
[null,null,null,null,null,null,null,null,null,null,null,null,null,null,null,null,null,null,null,null,0]
[null,null,null,null,null,null,null,null,null,null,null,null,null,null,null,null,null,null,null,null,0]
[null,null,null,null,null,null,null,null,null,null,null,null,null,null,null,null,null,null,null,null,0]
[null,null,null,null,null,null,null,null,null,null,null,null,null,null,null,null,null,null,null,null,0]
[null,null,null,null,null,null,null,null,null,null,null,null,null,null,null,null,null,null,null,null,0]
[null,null,null,null,null,null,null,null,null,null,null,null,null,null,null,null,null,null,null,null,0]
[null,null,null,null,null,null,null,null,null,null,null,null,null,null,null,null,null,null,null,null,0]
[null,null,null,null,null,null,null,null,null,null,null,null,null,null,null,null,null,null,null,null,0]
[null,null,null,null,null,null,null,null,null,null,null,null,null,null,null,null,null,null,null,null,0]
[null,null,null,null,null,null,null,null,null,null,null,null,null,null,null,null,null,null,null,null,0]
[null,null,null,null,null,null,null,null,null,null,null,null,null,null,null,null,null,null,null,null,0]
[null,null,null,null,null,null,null,null,null,null,null,null,null,null,null,null,null,null,null,null,0]
[null,null,null,null,null,null,null,null,null,null,null,null,null,null,null,null,null,null,null,null,0]
[null,null,null,null,null,null,null,null,null,null,null,null,null,null,null,null,null,null,null,null,0]
[null,null,null,null,null,null,null,null,null,null,null,null,null,null,null,null,null,null,null,null,0]
[null,null,null,null,null,null,null,null,null,null,null,null,null,null,null,null,null,null,null,null,0]
[null,null,null,null,null,null,null,null,null,null,null,null,null,null,null,null,null,null,null,null,0]
[null,null,null,null,null,null,null,null,null,null,null,null,null,null,null,null,null,null,null,null,0]
[null,null,null,null,null,null,null,null,null,null,null,null,null,null,null,null,null,null,null,null,0]
[null,null,null,null,null,null,null,null,null,null,null,null,null,null,null,null,null,null,null,null,0]
[null,null,null,null,null,null,null,null,null,null,null,null,null,null,null,null,null,null,null,null,0]
[null,null,null,null,null,null,null,null,null,null,null,null,null,null,null,null,null,null,null,null,{"$f":"I197+K197+M197+O197+Q197","v":0}]
[null,null,null,null,null,null,null,null,null,null,null,null,null,null,null,null,null,null,null,null,0]
[null,null,null,null,null,null,null,null,null,null,null,null,null,null,null,null,null,null,null,null,0]
[null,null,null,null,null,null,null,null,null,null,null,null,null,null,null,null,null,null,null,null,0]
[null,null,null,null,null,null,null,null,null,null,null,null,null,null,null,null,null,null,null,null,0]
[null,null,null,null,null,null,null,null,null,null,null,null,null,null,null,null,null,null,null,null,0]
[null,null,null,null,null,null,null,null,null,null,null,null,null,null,null,null,null,null,null,null,0]
[null,null,null,null,null,null,null,null,null,null,null,null,null,null,null,null,null,null,null,null,0]
[null,null,null,null,null,null,null,null,null,null,null,null,null,null,null,null,null,null,null,null,0]
[null,null,null,null,null,null,null,null,null,null,null,null,null,null,null,null,null,null,null,null,0]
[null,null,null,null,null,null,null,null,null,null,null,null,null,null,null,null,null,null,null,null,0]
[null,null,null,null,null,null,null,null,null,null,null,null,null,null,null,null,null,null,null,null,0]
[null,null,null,null,null,null,null,null,null,null,null,null,null,null,null,null,null,null,null,null,0]
[null,null,null,null,null,null,null,null,null,null,null,null,null,null,null,null,null,null,null,null,0]
[null,null,null,null,null,null,null,null,null,null,null,null,null,null,null,null,null,null,null,null,0]
[null,null,null,null,null,null,null,null,null,null,null,null,null,null,null,null,null,null,null,null,0]
[null,null,null,null,null,null,null,null,null,null,null,null,null,null,null,null,null,null,null,null,0]
[null,null,null,null,null,null,null,null,null,null,null,null,null,null,null,null,null,null,null,null,0]
[null,null,null,null,null,null,null,null,null,null,null,null,null,null,null,null,null,null,null,null,0]
[null,null,null,null,null,null,null,null,null,null,null,null,null,null,null,null,null,null,null,null,0]
[null,null,null,null,null,null,null,null,null,null,null,null,null,null,null,null,null,null,null,null,0]
[null,null,null,null,null,null,null,null,null,null,null,null,null,null,null,null,null,null,null,null,0]
[null,null,null,null,null,null,null,null,null,null,null,null,null,null,null,null,null,null,null,null,0]
[null,null,null,null,null,null,null,null,null,null,null,null,null,null,null,null,null,null,null,null,0]
[null,null,null,null,null,null,null,null,null,null,null,null,null,null,null,null,null,null,null,null,0]
[null,null,null,null,null,null,null,null,null,null,null,null,null,null,null,null,null,null,null,null,0]
[null,null,null,null,null,null,null,null,null,null,null,null,null,null,null,null,null,null,null,null,0]
[null,null,null,null,null,null,null,null,null,null,null,null,null,null,null,null,null,null,null,null,0]
[null,null,null,null,null,null,null,null,null,null,null,null,null,null,null,null,null,null,null,null,0]
[null,null,null,null,null,null,null,null,null,null,null,null,null,null,null,null,null,null,null,null,0]
[null,null,null,null,null,null,null,null,null,null,null,null,null,null,null,null,null,null,null,null,0]
[null,null,null,null,null,null,null,null,null,null,null,null,null,null,null,null,null,null,null,null,0]
[null,null,null,null,null,null,null,null,null,null,null,null,null,null,null,null,null,null,null,null,0]
[null,null,null,null,null,null,null,null,null,null,null,null,null,null,null,null,null,null,null,null,0]
[null,null,null,null,null,null,null,null,null,null,null,null,null,null,null,null,null,null,null,null,0]
[null,null,null,null,null,null,null,null,null,null,null,null,null,null,null,null,null,null,null,null,0]
[null,null,null,null,null,null,null,null,null,null,null,null,null,null,null,null,null,null,null,null,0]
[null,null,null,null,null,null,null,null,null,null,null,null,null,null,null,null,null,null,null,null,0]
[null,null,null,null,null,null,null,null,null,null,null,null,null,null,null,null,null,null,null,null,0]
[null,null,null,null,null,null,null,null,null,null,null,null,null,null,null,null,null,null,null,null,0]
[null,null,null,null,null,null,null,null,null,null,null,null,null,null,null,null,null,null,null,null,0]
[null,null,null,null,null,null,null,null,null,null,null,null,null,null,null,null,null,null,null,null,0]
[null,null,null,null,null,null,null,null,null,null,null,null,null,null,null,null,null,null,null,null,0]
[null,null,null,null,null,null,null,null,null,null,null,null,null,null,null,null,null,null,null,null,0]
[null,null,null,null,null,null,null,null,null,null,null,null,null,null,null,null,null,null,null,null,0]
[null,null,null,null,null,null,null,null,null,null,null,null,null,null,null,null,null,null,null,null,0]
[null,null,null,null,null,null,null,null,null,null,null,null,null,null,null,null,null,null,null,null,0]
[null,null,null,null,null,null,null,null,null,null,null,null,null,null,null,null,null,null,null,null,0]
[null,null,null,null,null,null,null,null,null,null,null,null,null,null,null,null,null,null,null,null,0]
[null,null,null,null,null,null,null,null,null,null,null,null,null,null,null,null,null,null,null,null,0]
[null,null,null,null,null,null,null,null,null,null,null,null,null,null,null,null,null,null,null,null,0]
[null,null,null,null,null,null,null,null,null,null,null,null,null,null,null,null,null,null,null,null,0]
[null,null,null,null,null,null,null,null,null,null,null,null,null,null,null,null,null,null,null,null,0]
[null,null,null,null,null,null,null,null,null,null,null,null,null,null,null,null,null,null,null,null,0]
[null,null,null,null,null,null,null,null,null,null,null,null,null,null,null,null,null,null,null,null,0]
[null,null,null,null,null,null,null,null,null,null,null,null,null,null,null,null,null,null,null,null,0]
[null,null,null,null,null,null,null,null,null,null,null,null,null,null,null,null,null,null,null,null,0]
[null,null,null,null,null,null,null,null,null,null,null,null,null,null,null,null,null,null,null,null,0]
[null,null,null,null,null,null,null,null,null,null,null,null,null,null,null,null,null,null,null,null,0]
[null,null,null,null,null,null,null,null,null,null,null,null,null,null,null,null,null,null,null,null,0]
[null,null,null,null,null,null,null,null,null,null,null,null,null,null,null,null,null,null,null,null,0]
[null,null,null,null,null,null,null,null,null,null,null,null,null,null,null,null,null,null,null,null,0]
[null,null,null,null,null,null,null,null,null,null,null,null,null,null,null,null,null,null,null,null,0]
[null,null,null,null,null,null,null,null,null,null,null,null,null,null,null,null,null,null,null,null,0]
[null,null,null,null,null,null,null,null,null,null,null,null,null,null,null,null,null,null,null,null,{"$f":"I261+K261+M261+O261+Q261","v":0}]
[null,null,null,null,null,null,null,null,null,null,null,null,null,null,null,null,null,null,null,null,0]
[null,null,null,null,null,null,null,null,null,null,null,null,null,null,null,null,null,null,null,null,0]
[null,null,null,null,null,null,null,null,null,null,null,null,null,null,null,null,null,null,null,null,0]
[null,null,null,null,null,null,null,null,null,null,null,null,null,null,null,null,null,null,null,null,0]
[null,null,null,null,null,null,null,null,null,null,null,null,null,null,null,null,null,null,null,null,0]
[null,null,null,null,null,null,null,null,null,null,null,null,null,null,null,null,null,null,null,null,0]
[null,null,null,null,null,null,null,null,null,null,null,null,null,null,null,null,null,null,null,null,0]
[null,null,null,null,null,null,null,null,null,null,null,null,null,null,null,null,null,null,null,null,0]
[null,null,null,null,null,null,null,null,null,null,null,null,null,null,null,null,null,null,null,null,0]
[null,null,null,null,null,null,null,null,null,null,null,null,null,null,null,null,null,null,null,null,0]
[null,null,null,null,null,null,null,null,null,null,null,null,null,null,null,null,null,null,null,null,0]
[null,null,null,null,null,null,null,null,null,null,null,null,null,null,null,null,null,null,null,null,0]
[null,null,null,null,null,null,null,null,null,null,null,null,null,null,null,null,null,null,null,null,0]
[null,null,null,null,null,null,null,null,null,null,null,null,null,null,null,null,null,null,null,null,0]
[null,null,null,null,null,null,null,null,null,null,null,null,null,null,null,null,null,null,null,null,0]
[null,null,null,null,null,null,null,null,null,null,null,null,null,null,null,null,null,null,null,null,0]
[null,null,null,null,null,null,null,null,null,null,null,null,null,null,null,null,null,null,null,null,0]
[null,null,null,null,null,null,null,null,null,null,null,null,null,null,null,null,null,null,null,null,0]
[null,null,null,null,null,null,null,null,null,null,null,null,null,null,null,null,null,null,null,null,0]
[null,null,null,null,null,null,null,null,null,null,null,null,null,null,null,null,null,null,null,null,0]
[null,null,null,null,null,null,null,null,null,null,null,null,null,null,null,null,null,null,null,null,0]
[null,null,null,null,null,null,null,null,null,null,null,null,null,null,null,null,null,null,null,null,0]
[null,null,null,null,null,null,null,null,null,null,null,null,null,null,null,null,null,null,null,null,0]
[null,null,null,null,null,null,null,null,null,null,null,null,null,null,null,null,null,null,null,null,0]
[null,null,null,null,null,null,null,null,null,null,null,null,null,null,null,null,null,null,null,null,0]
[null,null,null,null,null,null,null,null,null,null,null,null,null,null,null,null,null,null,null,null,0]
[null,null,null,null,null,null,null,null,null,null,null,null,null,null,null,null,null,null,null,null,0]
[null,null,null,null,null,null,null,null,null,null,null,null,null,null,null,null,null,null,null,null,0]
[null,null,null,null,null,null,null,null,null,null,null,null,null,null,null,null,null,null,null,null,0]
[null,null,null,null,null,null,null,null,null,null,null,null,null,null,null,null,null,null,null,null,0]
[null,null,null,null,null,null,null,null,null,null,null,null,null,null,null,null,null,null,null,null,0]
[null,null,null,null,null,null,null,null,null,null,null,null,null,null,null,null,null,null,null,null,0]
[null,null,null,null,null,null,null,null,null,null,null,null,null,null,null,null,null,null,null,null,0]
[null,null,null,null,null,null,null,null,null,null,null,null,null,null,null,null,null,null,null,null,0]
[null,null,null,null,null,null,null,null,null,null,null,null,null,null,null,null,null,null,null,null,0]
[null,null,null,null,null,null,null,null,null,null,null,null,null,null,null,null,null,null,null,null,0]
[null,null,null,null,null,null,null,null,null,null,null,null,null,null,null,null,null,null,null,null,0]
[null,null,null,null,null,null,null,null,null,null,null,null,null,null,null,null,null,null,null,null,0]
[null,null,null,null,null,null,null,null,null,null,null,null,null,null,null,null,null,null,null,null,0]
[null,null,null,null,null,null,null,null,null,null,null,null,null,null,null,null,null,null,null,null,0]
[null,null,null,null,null,null,null,null,null,null,null,null,null,null,null,null,null,null,null,null,0]
[null,null,null,null,null,null,null,null,null,null,null,null,null,null,null,null,null,null,null,null,0]
[null,null,null,null,null,null,null,null,null,null,null,null,null,null,null,null,null,null,null,null,0]
[null,null,null,null,null,null,null,null,null,null,null,null,null,null,null,null,null,null,null,null,0]
[null,null,null,null,null,null,null,null,null,null,null,null,null,null,null,null,null,null,null,null,0]
[null,null,null,null,null,null,null,null,null,null,null,null,null,null,null,null,null,null,null,null,0]
[null,null,null,null,null,null,null,null,null,null,null,null,null,null,null,null,null,null,null,null,0]
[null,null,null,null,null,null,null,null,null,null,null,null,null,null,null,null,null,null,null,null,0]
[null,null,null,null,null,null,null,null,null,null,null,null,null,null,null,null,null,null,null,null,0]
[null,null,null,null,null,null,null,null,null,null,null,null,null,null,null,null,null,null,null,null,0]
[null,null,null,null,null,null,null,null,null,null,null,null,null,null,null,null,null,null,null,null,0]
[null,null,null,null,null,null,null,null,null,null,null,null,null,null,null,null,null,null,null,null,0]
[null,null,null,null,null,null,null,null,null,null,null,null,null,null,null,null,null,null,null,null,0]
[null,null,null,null,null,null,null,null,null,null,null,null,null,null,null,null,null,null,null,null,0]
[null,null,null,null,null,null,null,null,null,null,null,null,null,null,null,null,null,null,null,null,0]
[null,null,null,null,null,null,null,null,null,null,null,null,null,null,null,null,null,null,null,null,0]
[null,null,null,null,null,null,null,null,null,null,null,null,null,null,null,null,null,null,null,null,0]
[null,null,null,null,null,null,null,null,null,null,null,null,null,null,null,null,null,null,null,null,0]
[null,null,null,null,null,null,null,null,null,null,null,null,null,null,null,null,null,null,null,null,0]
[null,null,null,null,null,null,null,null,null,null,null,null,null,null,null,null,null,null,null,null,0]
[null,null,null,null,null,null,null,null,null,null,null,null,null,null,null,null,null,null,null,null,0]
[null,null,null,null,null,null,null,null,null,null,null,null,null,null,null,null,null,null,null,null,0]
[null,null,null,null,null,null,null,null,null,null,null,null,null,null,null,null,null,null,null,null,0]
[null,null,null,null,null,null,null,null,null,null,null,null,null,null,null,null,null,null,null,null,{"$f":"I325+K325+M325+O325+Q325","v":0}]
[null,null,null,null,null,null,null,null,null,null,null,null,null,null,null,null,null,null,null,null,0]
[null,null,null,null,null,null,null,null,null,null,null,null,null,null,null,null,null,null,null,null,0]
[null,null,null,null,null,null,null,null,null,null,null,null,null,null,null,null,null,null,null,null,0]
[null,null,null,null,null,null,null,null,null,null,null,null,null,null,null,null,null,null,null,null,0]
[null,null,null,null,null,null,null,null,null,null,null,null,null,null,null,null,null,null,null,null,0]
[null,null,null,null,null,null,null,null,null,null,null,null,null,null,null,null,null,null,null,null,0]
[null,null,null,null,null,null,null,null,null,null,null,null,null,null,null,null,null,null,null,null,0]
[null,null,null,null,null,null,null,null,null,null,null,null,null,null,null,null,null,null,null,null,0]
[null,null,null,null,null,null,null,null,null,null,null,null,null,null,null,null,null,null,null,null,0]
[null,null,null,null,null,null,null,null,null,null,null,null,null,null,null,null,null,null,null,null,0]
[null,null,null,null,null,null,null,null,null,null,null,null,null,null,null,null,null,null,null,null,0]
[null,null,null,null,null,null,null,null,null,null,null,null,null,null,null,null,null,null,null,null,0]
[null,null,null,null,null,null,null,null,null,null,null,null,null,null,null,null,null,null,null,null,0]
[null,null,null,null,null,null,null,null,null,null,null,null,null,null,null,null,null,null,null,null,0]
[null,null,null,null,null,null,null,null,null,null,null,null,null,null,null,null,null,null,null,null,0]
[null,null,null,null,null,null,null,null,null,null,null,null,null,null,null,null,null,null,null,null,0]
[null,null,null,null,null,null,null,null,null,null,null,null,null,null,null,null,null,null,null,null,0]
[null,null,null,null,null,null,null,null,null,null,null,null,null,null,null,null,null,null,null,null,0]
[null,null,null,null,null,null,null,null,null,null,null,null,null,null,null,null,null,null,null,null,0]
[null,null,null,null,null,null,null,null,null,null,null,null,null,null,null,null,null,null,null,null,0]
[null,null,null,null,null,null,null,null,null,null,null,null,null,null,null,null,null,null,null,null,0]
[null,null,null,null,null,null,null,null,null,null,null,null,null,null,null,null,null,null,null,null,0]
[null,null,null,null,null,null,null,null,null,null,null,null,null,null,null,null,null,null,null,null,0]
[null,null,null,null,null,null,null,null,null,null,null,null,null,null,null,null,null,null,null,null,0]
[null,null,null,null,null,null,null,null,null,null,null,null,null,null,null,null,null,null,null,null,0]
[null,null,null,null,null,null,null,null,null,null,null,null,null,null,null,null,null,null,null,null,0]
[null,null,null,null,null,null,null,null,null,null,null,null,null,null,null,null,null,null,null,null,0]
[null,null,null,null,null,null,null,null,null,null,null,null,null,null,null,null,null,null,null,null,0]
[null,null,null,null,null,null,null,null,null,null,null,null,null,null,null,null,null,null,null,null,0]
[null,null,null,null,null,null,null,null,null,null,null,null,null,null,null,null,null,null,null,null,0]
[null,null,null,null,null,null,null,null,null,null,null,null,null,null,null,null,null,null,null,null,0]
[null,null,null,null,null,null,null,null,null,null,null,null,null,null,null,null,null,null,null,null,0]
[null,null,null,null,null,null,null,null,null,null,null,null,null,null,null,null,null,null,null,null,0]
[null,null,null,null,null,null,null,null,null,null,null,null,null,null,null,null,null,null,null,null,0]
[null,null,null,null,null,null,null,null,null,null,null,null,null,null,null,null,null,null,null,null,0]
[null,null,null,null,null,null,null,null,null,null,null,null,null,null,null,null,null,null,null,null,0]
[null,null,null,null,null,null,null,null,null,null,null,null,null,null,null,null,null,null,null,null,0]
[null,null,null,null,null,null,null,null,null,null,null,null,null,null,null,null,null,null,null,null,0]
[null,null,null,null,null,null,null,null,null,null,null,null,null,null,null,null,null,null,null,null,0]
[null,null,null,null,null,null,null,null,null,null,null,null,null,null,null,null,null,null,null,null,0]
[null,null,null,null,null,null,null,null,null,null,null,null,null,null,null,null,null,null,null,null,0]
[null,null,null,null,null,null,null,null,null,null,null,null,null,null,null,null,null,null,null,null,0]
[null,null,null,null,null,null,null,null,null,null,null,null,null,null,null,null,null,null,null,null,0]
[null,null,null,null,null,null,null,null,null,null,null,null,null,null,null,null,null,null,null,null,0]
[null,null,null,null,null,null,null,null,null,null,null,null,null,null,null,null,null,null,null,null,0]
[null,null,null,null,null,null,null,null,null,null,null,null,null,null,null,null,null,null,null,null,0]
[null,null,null,null,null,null,null,null,null,null,null,null,null,null,null,null,null,null,null,null,0]
[null,null,null,null,null,null,null,null,null,null,null,null,null,null,null,null,null,null,null,null,0]
[null,null,null,null,null,null,null,null,null,null,null,null,null,null,null,null,null,null,null,null,0]
[null,null,null,null,null,null,null,null,null,null,null,null,null,null,null,null,null,null,null,null,0]
[null,null,null,null,null,null,null,null,null,null,null,null,null,null,null,null,null,null,null,null,0]
[null,null,null,null,null,null,null,null,null,null,null,null,null,null,null,null,null,null,null,null,0]
[null,null,null,null,null,null,null,null,null,null,null,null,null,null,null,null,null,null,null,null,0]
[null,null,null,null,null,null,null,null,null,null,null,null,null,null,null,null,null,null,null,null,0]
[null,null,null,null,null,null,null,null,null,null,null,null,null,null,null,null,null,null,null,null,0]
[null,null,null,null,null,null,null,null,null,null,null,null,null,null,null,null,null,null,null,null,0]
[null,null,null,null,null,null,null,null,null,null,null,null,null,null,null,null,null,null,null,null,0]
[null,null,null,null,null,null,null,null,null,null,null,null,null,null,null,null,null,null,null,null,0]
[null,null,null,null,null,null,null,null,null,null,null,null,null,null,null,null,null,null,null,null,0]
[null,null,null,null,null,null,null,null,null,null,null,null,null,null,null,null,null,null,null,null,0]
[null,null,null,null,null,null,null,null,null,null,null,null,null,null,null,null,null,null,null,null,0]
[null,null,null,null,null,null,null,null,null,null,null,null,null,null,null,null,null,null,null,null,0]
[null,null,null,null,null,null,null,null,null,null,null,null,null,null,null,null,null,null,null,null,0]
[null,null,null,null,null,null,null,null,null,null,null,null,null,null,null,null,null,null,null,null,{"$f":"I389+K389+M389+O389+Q389","v":0}]
[null,null,null,null,null,null,null,null,null,null,null,null,null,null,null,null,null,null,null,null,0]
[null,null,null,null,null,null,null,null,null,null,null,null,null,null,null,null,null,null,null,null,0]
[null,null,null,null,null,null,null,null,null,null,null,null,null,null,null,null,null,null,null,null,0]
[null,null,null,null,null,null,null,null,null,null,null,null,null,null,null,null,null,null,null,null,0]
[null,null,null,null,null,null,null,null,null,null,null,null,null,null,null,null,null,null,null,null,0]
[null,null,null,null,null,null,null,null,null,null,null,null,null,null,null,null,null,null,null,null,0]
[null,null,null,null,null,null,null,null,null,null,null,null,null,null,null,null,null,null,null,null,0]
[null,null,null,null,null,null,null,null,null,null,null,null,null,null,null,null,null,null,null,null,0]
[null,null,null,null,null,null,null,null,null,null,null,null,null,null,null,null,null,null,null,null,0]
[null,null,null,null,null,null,null,null,null,null,null,null,null,null,null,null,null,null,null,null,0]
[null,null,null,null,null,null,null,null,null,null,null,null,null,null,null,null,null,null,null,null,0]
[null,null,null,null,null,null,null,null,null,null,null,null,null,null,null,null,null,null,null,null,0]
[null,null,null,null,null,null,null,null,null,null,null,null,null,null,null,null,null,null,null,null,0]
[null,null,null,null,null,null,null,null,null,null,null,null,null,null,null,null,null,null,null,null,0]
[null,null,null,null,null,null,null,null,null,null,null,null,null,null,null,null,null,null,null,null,0]
[null,null,null,null,null,null,null,null,null,null,null,null,null,null,null,null,null,null,null,null,0]
[null,null,null,null,null,null,null,null,null,null,null,null,null,null,null,null,null,null,null,null,0]
[null,null,null,null,null,null,null,null,null,null,null,null,null,null,null,null,null,null,null,null,0]
[null,null,null,null,null,null,null,null,null,null,null,null,null,null,null,null,null,null,null,null,0]
[null,null,null,null,null,null,null,null,null,null,null,null,null,null,null,null,null,null,null,null,0]
[null,null,null,null,null,null,null,null,null,null,null,null,null,null,null,null,null,null,null,null,0]
[null,null,null,null,null,null,null,null,null,null,null,null,null,null,null,null,null,null,null,null,0]
[null,null,null,null,null,null,null,null,null,null,null,null,null,null,null,null,null,null,null,null,0]
[null,null,null,null,null,null,null,null,null,null,null,null,null,null,null,null,null,null,null,null,0]
[null,null,null,null,null,null,null,null,null,null,null,null,null,null,null,null,null,null,null,null,0]
[null,null,null,null,null,null,null,null,null,null,null,null,null,null,null,null,null,null,null,null,0]
[null,null,null,null,null,null,null,null,null,null,null,null,null,null,null,null,null,null,null,null,0]
[null,null,null,null,null,null,null,null,null,null,null,null,null,null,null,null,null,null,null,null,0]
[null,null,null,null,null,null,null,null,null,null,null,null,null,null,null,null,null,null,null,null,0]
[null,null,null,null,null,null,null,null,null,null,null,null,null,null,null,null,null,null,null,null,0]
[null,null,null,null,null,null,null,null,null,null,null,null,null,null,null,null,null,null,null,null,0]
[null,null,null,null,null,null,null,null,null,null,null,null,null,null,null,null,null,null,null,null,0]
[null,null,null,null,null,null,null,null,null,null,null,null,null,null,null,null,null,null,null,null,0]
[null,null,null,null,null,null,null,null,null,null,null,null,null,null,null,null,null,null,null,null,0]
[null,null,null,null,null,null,null,null,null,null,null,null,null,null,null,null,null,null,null,null,0]
[null,null,null,null,null,null,null,null,null,null,null,null,null,null,null,null,null,null,null,null,0]
[null,null,null,null,null,null,null,null,null,null,null,null,null,null,null,null,null,null,null,null,0]
[null,null,null,null,null,null,null,null,null,null,null,null,null,null,null,null,null,null,null,null,0]
[null,null,null,null,null,null,null,null,null,null,null,null,null,null,null,null,null,null,null,null,0]
[null,null,null,null,null,null,null,null,null,null,null,null,null,null,null,null,null,null,null,null,0]
[null,null,null,null,null,null,null,null,null,null,null,null,null,null,null,null,null,null,null,null,0]
[null,null,null,null,null,null,null,null,null,null,null,null,null,null,null,null,null,null,null,null,0]
[null,null,null,null,null,null,null,null,null,null,null,null,null,null,null,null,null,null,null,null,0]
[null,null,null,null,null,null,null,null,null,null,null,null,null,null,null,null,null,null,null,null,0]
[null,null,null,null,null,null,null,null,null,null,null,null,null,null,null,null,null,null,null,null,0]
[null,null,null,null,null,null,null,null,null,null,null,null,null,null,null,null,null,null,null,null,0]
[null,null,null,null,null,null,null,null,null,null,null,null,null,null,null,null,null,null,null,null,0]
[null,null,null,null,null,null,null,null,null,null,null,null,null,null,null,null,null,null,null,null,0]
[null,null,null,null,null,null,null,null,null,null,null,null,null,null,null,null,null,null,null,null,0]
[null,null,null,null,null,null,null,null,null,null,null,null,null,null,null,null,null,null,null,null,0]
[null,null,null,null,null,null,null,null,null,null,null,null,null,null,null,null,null,null,null,null,0]
[null,null,null,null,null,null,null,null,null,null,null,null,null,null,null,null,null,null,null,null,0]
[null,null,null,null,null,null,null,null,null,null,null,null,null,null,null,null,null,null,null,null,0]
[null,null,null,null,null,null,null,null,null,null,null,null,null,null,null,null,null,null,null,null,0]
[null,null,null,null,null,null,null,null,null,null,null,null,null,null,null,null,null,null,null,null,0]
[null,null,null,null,null,null,null,null,null,null,null,null,null,null,null,null,null,null,null,null,0]
[null,null,null,null,null,null,null,null,null,null,null,null,null,null,null,null,null,null,null,null,0]
[null,null,null,null,null,null,null,null,null,null,null,null,null,null,null,null,null,null,null,null,0]
[null,null,null,null,null,null,null,null,null,null,null,null,null,null,null,null,null,null,null,null,0]
[null,null,null,null,null,null,null,null,null,null,null,null,null,null,null,null,null,null,null,null,0]
[null,null,null,null,null,null,null,null,null,null,null,null,null,null,null,null,null,null,null,null,0]
[null,null,null,null,null,null,null,null,null,null,null,null,null,null,null,null,null,null,null,null,0]
[null,null,null,null,null,null,null,null,null,null,null,null,null,null,null,null,null,null,null,null,0]
[null,null,null,null,null,null,null,null,null,null,null,null,null,null,null,null,null,null,null,null,{"$f":"I453+K453+M453+O453+Q453","v":0}]
[null,null,null,null,null,null,null,null,null,null,null,null,null,null,null,null,null,null,null,null,0]
[null,null,null,null,null,null,null,null,null,null,null,null,null,null,null,null,null,null,null,null,0]
[null,null,null,null,null,null,null,null,null,null,null,null,null,null,null,null,null,null,null,null,0]
[null,null,null,null,null,null,null,null,null,null,null,null,null,null,null,null,null,null,null,null,0]
[null,null,null,null,null,null,null,null,null,null,null,null,null,null,null,null,null,null,null,null,0]
[null,null,null,null,null,null,null,null,null,null,null,null,null,null,null,null,null,null,null,null,0]
[null,null,null,null,null,null,null,null,null,null,null,null,null,null,null,null,null,null,null,null,0]
[null,null,null,null,null,null,null,null,null,null,null,null,null,null,null,null,null,null,null,null,0]
[null,null,null,null,null,null,null,null,null,null,null,null,null,null,null,null,null,null,null,null,0]
[null,null,null,null,null,null,null,null,null,null,null,null,null,null,null,null,null,null,null,null,0]
[null,null,null,null,null,null,null,null,null,null,null,null,null,null,null,null,null,null,null,null,0]
[null,null,null,null,null,null,null,null,null,null,null,null,null,null,null,null,null,null,null,null,0]
[null,null,null,null,null,null,null,null,null,null,null,null,null,null,null,null,null,null,null,null,0]
[null,null,null,null,null,null,null,null,null,null,null,null,null,null,null,null,null,null,null,null,0]
[null,null,null,null,null,null,null,null,null,null,null,null,null,null,null,null,null,null,null,null,0]
[null,null,null,null,null,null,null,null,null,null,null,null,null,null,null,null,null,null,null,null,0]
[null,null,null,null,null,null,null,null,null,null,null,null,null,null,null,null,null,null,null,null,0]
[null,null,null,null,null,null,null,null,null,null,null,null,null,null,null,null,null,null,null,null,0]
[null,null,null,null,null,null,null,null,null,null,null,null,null,null,null,null,null,null,null,null,0]
[null,null,null,null,null,null,null,null,null,null,null,null,null,null,null,null,null,null,null,null,0]
[null,null,null,null,null,null,null,null,null,null,null,null,null,null,null,null,null,null,null,null,0]
[null,null,null,null,null,null,null,null,null,null,null,null,null,null,null,null,null,null,null,null,0]
[null,null,null,null,null,null,null,null,null,null,null,null,null,null,null,null,null,null,null,null,0]
[null,null,null,null,null,null,null,null,null,null,null,null,null,null,null,null,null,null,null,null,0]
[null,null,null,null,null,null,null,null,null,null,null,null,null,null,null,null,null,null,null,null,0]
[null,null,null,null,null,null,null,null,null,null,null,null,null,null,null,null,null,null,null,null,0]
[null,null,null,null,null,null,null,null,null,null,null,null,null,null,null,null,null,null,null,null,0]
[null,null,null,null,null,null,null,null,null,null,null,null,null,null,null,null,null,null,null,null,0]
[null,null,null,null,null,null,null,null,null,null,null,null,null,null,null,null,null,null,null,null,0]
[null,null,null,null,null,null,null,null,null,null,null,null,null,null,null,null,null,null,null,null,0]
[null,null,null,null,null,null,null,null,null,null,null,null,null,null,null,null,null,null,null,null,0]
[null,null,null,null,null,null,null,null,null,null,null,null,null,null,null,null,null,null,null,null,0]
[null,null,null,null,null,null,null,null,null,null,null,null,null,null,null,null,null,null,null,null,0]
[null,null,null,null,null,null,null,null,null,null,null,null,null,null,null,null,null,null,null,null,0]
[null,null,null,null,null,null,null,null,null,null,null,null,null,null,null,null,null,null,null,null,0]
[null,null,null,null,null,null,null,null,null,null,null,null,null,null,null,null,null,null,null,null,0]
[null,null,null,null,null,null,null,null,null,null,null,null,null,null,null,null,null,null,null,null,0]
[null,null,null,null,null,null,null,null,null,null,null,null,null,null,null,null,null,null,null,null,0]
[null,null,null,null,null,null,null,null,null,null,null,null,null,null,null,null,null,null,null,null,0]
[null,null,null,null,null,null,null,null,null,null,null,null,null,null,null,null,null,null,null,null,0]
[null,null,null,null,null,null,null,null,null,null,null,null,null,null,null,null,null,null,null,null,0]
[null,null,null,null,null,null,null,null,null,null,null,null,null,null,null,null,null,null,null,null,0]
[null,null,null,null,null,null,null,null,null,null,null,null,null,null,null,null,null,null,null,null,0]
[null,null,null,null,null,null,null,null,null,null,null,null,null,null,null,null,null,null,null,null,0]
[null,null,null,null,null,null,null,null,null,null,null,null,null,null,null,null,null,null,null,null,0]
[null,null,null,null,null,null,null,null,null,null,null,null,null,null,null,null,null,null,null,null,0]
[null,null,null,null,null,null,null,null,null,null,null,null,null,null,null,null,null,null,null,null,0]
[null,null,null,null,null,null,null,null,null,null,null,null,null,null,null,null,null,null,null,null,0]
[null,null,null,null,null,null,null,null,null,null,null,null,null,null,null,null,null,null,null,null,0]
[null,null,null,null,null,null,null,null,null,null,null,null,null,null,null,null,null,null,null,null,0]
[null,null,null,null,null,null,null,null,null,null,null,null,null,null,null,null,null,null,null,null,0]
[null,null,null,null,null,null,null,null,null,null,null,null,null,null,null,null,null,null,null,null,0]
[null,null,null,null,null,null,null,null,null,null,null,null,null,null,null,null,null,null,null,null,0]
[null,null,null,null,null,null,null,null,null,null,null,null,null,null,null,null,null,null,null,null,0]
[null,null,null,null,null,null,null,null,null,null,null,null,null,null,null,null,null,null,null,null,0]
[null,null,null,null,null,null,null,null,null,null,null,null,null,null,null,null,null,null,null,null,0]
[null,null,null,null,null,null,null,null,null,null,null,null,null,null,null,null,null,null,null,null,0]
[null,null,null,null,null,null,null,null,null,null,null,null,null,null,null,null,null,null,null,null,0]
[null,null,null,null,null,null,null,null,null,null,null,null,null,null,null,null,null,null,null,null,0]
[null,null,null,null,null,null,null,null,null,null,null,null,null,null,null,null,null,null,null,null,0]
[null,null,null,null,null,null,null,null,null,null,null,null,null,null,null,null,null,null,null,null,0]
[null,null,null,null,null,null,null,null,null,null,null,null,null,null,null,null,null,null,null,null,0]
[null,null,null,null,null,null,null,null,null,null,null,null,null,null,null,null,null,null,null,null,0]
[null,null,null,null,null,null,null,null,null,null,null,null,null,null,null,null,null,null,null,null,{"$f":"I517+K517+M517+O517+Q517","v":0}]
[null,null,null,null,null,null,null,null,null,null,null,null,null,null,null,null,null,null,null,null,0]
[null,null,null,null,null,null,null,null,null,null,null,null,null,null,null,null,null,null,null,null,0]
[null,null,null,null,null,null,null,null,null,null,null,null,null,null,null,null,null,null,null,null,0]
[null,null,null,null,null,null,null,null,null,null,null,null,null,null,null,null,null,null,null,null,0]
[null,null,null,null,null,null,null,null,null,null,null,null,null,null,null,null,null,null,null,null,0]
[null,null,null,null,null,null,null,null,null,null,null,null,null,null,null,null,null,null,null,null,0]
[null,null,null,null,null,null,null,null,null,null,null,null,null,null,null,null,null,null,null,null,0]
[null,null,null,null,null,null,null,null,null,null,null,null,null,null,null,null,null,null,null,null,0]
[null,null,null,null,null,null,null,null,null,null,null,null,null,null,null,null,null,null,null,null,0]
[null,null,null,null,null,null,null,null,null,null,null,null,null,null,null,null,null,null,null,null,0]
[null,null,null,null,null,null,null,null,null,null,null,null,null,null,null,null,null,null,null,null,0]
[null,null,null,null,null,null,null,null,null,null,null,null,null,null,null,null,null,null,null,null,0]
[null,null,null,null,null,null,null,null,null,null,null,null,null,null,null,null,null,null,null,null,0]
[null,null,null,null,null,null,null,null,null,null,null,null,null,null,null,null,null,null,null,null,0]
[null,null,null,null,null,null,null,null,null,null,null,null,null,null,null,null,null,null,null,null,0]
[null,null,null,null,null,null,null,null,null,null,null,null,null,null,null,null,null,null,null,null,0]
[null,null,null,null,null,null,null,null,null,null,null,null,null,null,null,null,null,null,null,null,0]
[null,null,null,null,null,null,null,null,null,null,null,null,null,null,null,null,null,null,null,null,0]
[null,null,null,null,null,null,null,null,null,null,null,null,null,null,null,null,null,null,null,null,0]
[null,null,null,null,null,null,null,null,null,null,null,null,null,null,null,null,null,null,null,null,0]
[null,null,null,null,null,null,null,null,null,null,null,null,null,null,null,null,null,null,null,null,0]
[null,null,null,null,null,null,null,null,null,null,null,null,null,null,null,null,null,null,null,null,0]
[null,null,null,null,null,null,null,null,null,null,null,null,null,null,null,null,null,null,null,null,0]
[null,null,null,null,null,null,null,null,null,null,null,null,null,null,null,null,null,null,null,null,0]
[null,null,null,null,null,null,null,null,null,null,null,null,null,null,null,null,null,null,null,null,0]
[null,null,null,null,null,null,null,null,null,null,null,null,null,null,null,null,null,null,null,null,0]
[null,null,null,null,null,null,null,null,null,null,null,null,null,null,null,null,null,null,null,null,0]
[null,null,null,null,null,null,null,null,null,null,null,null,null,null,null,null,null,null,null,null,0]
[null,null,null,null,null,null,null,null,null,null,null,null,null,null,null,null,null,null,null,null,0]
[null,null,null,null,null,null,null,null,null,null,null,null,null,null,null,null,null,null,null,null,0]
[null,null,null,null,null,null,null,null,null,null,null,null,null,null,null,null,null,null,null,null,0]
[null,null,null,null,null,null,null,null,null,null,null,null,null,null,null,null,null,null,null,null,0]
[null,null,null,null,null,null,null,null,null,null,null,null,null,null,null,null,null,null,null,null,0]
[null,null,null,null,null,null,null,null,null,null,null,null,null,null,null,null,null,null,null,null,0]
[null,null,null,null,null,null,null,null,null,null,null,null,null,null,null,null,null,null,null,null,0]
[null,null,null,null,null,null,null,null,null,null,null,null,null,null,null,null,null,null,null,null,0]
[null,null,null,null,null,null,null,null,null,null,null,null,null,null,null,null,null,null,null,null,0]
[null,null,null,null,null,null,null,null,null,null,null,null,null,null,null,null,null,null,null,null,0]
[null,null,null,null,null,null,null,null,null,null,null,null,null,null,null,null,null,null,null,null,0]
[null,null,null,null,null,null,null,null,null,null,null,null,null,null,null,null,null,null,null,null,0]
[null,null,null,null,null,null,null,null,null,null,null,null,null,null,null,null,null,null,null,null,0]
[null,null,null,null,null,null,null,null,null,null,null,null,null,null,null,null,null,null,null,null,0]
[null,null,null,null,null,null,null,null,null,null,null,null,null,null,null,null,null,null,null,null,0]
[null,null,null,null,null,null,null,null,null,null,null,null,null,null,null,null,null,null,null,null,0]
[null,null,null,null,null,null,null,null,null,null,null,null,null,null,null,null,null,null,null,null,0]
[null,null,null,null,null,null,null,null,null,null,null,null,null,null,null,null,null,null,null,null,0]
[null,null,null,null,null,null,null,null,null,null,null,null,null,null,null,null,null,null,null,null,0]
[null,null,null,null,null,null,null,null,null,null,null,null,null,null,null,null,null,null,null,null,0]
[null,null,null,null,null,null,null,null,null,null,null,null,null,null,null,null,null,null,null,null,0]
[null,null,null,null,null,null,null,null,null,null,null,null,null,null,null,null,null,null,null,null,0]
[null,null,null,null,null,null,null,null,null,null,null,null,null,null,null,null,null,null,null,null,0]
[null,null,null,null,null,null,null,null,null,null,null,null,null,null,null,null,null,null,null,null,0]
[null,null,null,null,null,null,null,null,null,null,null,null,null,null,null,null,null,null,null,null,0]
[null,null,null,null,null,null,null,null,null,null,null,null,null,null,null,null,null,null,null,null,0]
[null,null,null,null,null,null,null,null,null,null,null,null,null,null,null,null,null,null,null,null,0]
[null,null,null,null,null,null,null,null,null,null,null,null,null,null,null,null,null,null,null,null,0]
[null,null,null,null,null,null,null,null,null,null,null,null,null,null,null,null,null,null,null,null,0]
[null,null,null,null,null,null,null,null,null,null,null,null,null,null,null,null,null,null,null,null,0]
[null,null,null,null,null,null,null,null,null,null,null,null,null,null,null,null,null,null,null,null,0]
[null,null,null,null,null,null,null,null,null,null,null,null,null,null,null,null,null,null,null,null,0]
[null,null,null,null,null,null,null,null,null,null,null,null,null,null,null,null,null,null,null,null,0]
[null,null,null,null,null,null,null,null,null,null,null,null,null,null,null,null,null,null,null,null,0]
[null,null,null,null,null,null,null,null,null,null,null,null,null,null,null,null,null,null,null,null,0]
[null,null,null,null,null,null,null,null,null,null,null,null,null,null,null,null,null,null,null,null,{"$f":"I581+K581+M581+O581+Q581","v":0}]
[null,null,null,null,null,null,null,null,null,null,null,null,null,null,null,null,null,null,null,null,0]
[null,null,null,null,null,null,null,null,null,null,null,null,null,null,null,null,null,null,null,null,0]
[null,null,null,null,null,null,null,null,null,null,null,null,null,null,null,null,null,null,null,null,0]
[null,null,null,null,null,null,null,null,null,null,null,null,null,null,null,null,null,null,null,null,0]
[null,null,null,null,null,null,null,null,null,null,null,null,null,null,null,null,null,null,null,null,0]
[null,null,null,null,null,null,null,null,null,null,null,null,null,null,null,null,null,null,null,null,0]
[null,null,null,null,null,null,null,null,null,null,null,null,null,null,null,null,null,null,null,null,0]
[null,null,null,null,null,null,null,null,null,null,null,null,null,null,null,null,null,null,null,null,0]
[null,null,null,null,null,null,null,null,null,null,null,null,null,null,null,null,null,null,null,null,0]
[null,null,null,null,null,null,null,null,null,null,null,null,null,null,null,null,null,null,null,null,0]
[null,null,null,null,null,null,null,null,null,null,null,null,null,null,null,null,null,null,null,null,0]
[null,null,null,null,null,null,null,null,null,null,null,null,null,null,null,null,null,null,null,null,0]
[null,null,null,null,null,null,null,null,null,null,null,null,null,null,null,null,null,null,null,null,0]
[null,null,null,null,null,null,null,null,null,null,null,null,null,null,null,null,null,null,null,null,0]
[null,null,null,null,null,null,null,null,null,null,null,null,null,null,null,null,null,null,null,null,0]
[null,null,null,null,null,null,null,null,null,null,null,null,null,null,null,null,null,null,null,null,0]
[null,null,null,null,null,null,null,null,null,null,null,null,null,null,null,null,null,null,null,null,0]
[null,null,null,null,null,null,null,null,null,null,null,null,null,null,null,null,null,null,null,null,0]
[null,null,null,null,null,null,null,null,null,null,null,null,null,null,null,null,null,null,null,null,0]
[null,null,null,null,null,null,null,null,null,null,null,null,null,null,null,null,null,null,null,null,0]
[null,null,null,null,null,null,null,null,null,null,null,null,null,null,null,null,null,null,null,null,0]
[null,null,null,null,null,null,null,null,null,null,null,null,null,null,null,null,null,null,null,null,0]
[null,null,null,null,null,null,null,null,null,null,null,null,null,null,null,null,null,null,null,null,0]
[null,null,null,null,null,null,null,null,null,null,null,null,null,null,null,null,null,null,null,null,0]
[null,null,null,null,null,null,null,null,null,null,null,null,null,null,null,null,null,null,null,null,0]
[null,null,null,null,null,null,null,null,null,null,null,null,null,null,null,null,null,null,null,null,0]
[null,null,null,null,null,null,null,null,null,null,null,null,null,null,null,null,null,null,null,null,0]
[null,null,null,null,null,null,null,null,null,null,null,null,null,null,null,null,null,null,null,null,0]
[null,null,null,null,null,null,null,null,null,null,null,null,null,null,null,null,null,null,null,null,0]
[null,null,null,null,null,null,null,null,null,null,null,null,null,null,null,null,null,null,null,null,0]
[null,null,null,null,null,null,null,null,null,null,null,null,null,null,null,null,null,null,null,null,0]
[null,null,null,null,null,null,null,null,null,null,null,null,null,null,null,null,null,null,null,null,0]
[null,null,null,null,null,null,null,null,null,null,null,null,null,null,null,null,null,null,null,null,0]
[null,null,null,null,null,null,null,null,null,null,null,null,null,null,null,null,null,null,null,null,0]
[null,null,null,null,null,null,null,null,null,null,null,null,null,null,null,null,null,null,null,null,0]
[null,null,null,null,null,null,null,null,null,null,null,null,null,null,null,null,null,null,null,null,0]
[null,null,null,null,null,null,null,null,null,null,null,null,null,null,null,null,null,null,null,null,0]
[null,null,null,null,null,null,null,null,null,null,null,null,null,null,null,null,null,null,null,null,0]
[null,null,null,null,null,null,null,null,null,null,null,null,null,null,null,null,null,null,null,null,0]
[null,null,null,null,null,null,null,null,null,null,null,null,null,null,null,null,null,null,null,null,0]
[null,null,null,null,null,null,null,null,null,null,null,null,null,null,null,null,null,null,null,null,0]
[null,null,null,null,null,null,null,null,null,null,null,null,null,null,null,null,null,null,null,null,0]
[null,null,null,null,null,null,null,null,null,null,null,null,null,null,null,null,null,null,null,null,0]
[null,null,null,null,null,null,null,null,null,null,null,null,null,null,null,null,null,null,null,null,0]
[null,null,null,null,null,null,null,null,null,null,null,null,null,null,null,null,null,null,null,null,0]
[null,null,null,null,null,null,null,null,null,null,null,null,null,null,null,null,null,null,null,null,0]
[null,null,null,null,null,null,null,null,null,null,null,null,null,null,null,null,null,null,null,null,0]
[null,null,null,null,null,null,null,null,null,null,null,null,null,null,null,null,null,null,null,null,0]
[null,null,null,null,null,null,null,null,null,null,null,null,null,null,null,null,null,null,null,null,0]
[null,null,null,null,null,null,null,null,null,null,null,null,null,null,null,null,null,null,null,null,0]
[null,null,null,null,null,null,null,null,null,null,null,null,null,null,null,null,null,null,null,null,0]
[null,null,null,null,null,null,null,null,null,null,null,null,null,null,null,null,null,null,null,null,0]
[null,null,null,null,null,null,null,null,null,null,null,null,null,null,null,null,null,null,null,null,0]
[null,null,null,null,null,null,null,null,null,null,null,null,null,null,null,null,null,null,null,null,0]
[null,null,null,null,null,null,null,null,null,null,null,null,null,null,null,null,null,null,null,null,0]
[null,null,null,null,null,null,null,null,null,null,null,null,null,null,null,null,null,null,null,null,0]
[null,null,null,null,null,null,null,null,null,null,null,null,null,null,null,null,null,null,null,null,0]
[null,null,null,null,null,null,null,null,null,null,null,null,null,null,null,null,null,null,null,null,0]
[null,null,null,null,null,null,null,null,null,null,null,null,null,null,null,null,null,null,null,null,0]
[null,null,null,null,null,null,null,null,null,null,null,null,null,null,null,null,null,null,null,null,0]
[null,null,null,null,null,null,null,null,null,null,null,null,null,null,null,null,null,null,null,null,0]
[null,null,null,null,null,null,null,null,null,null,null,null,null,null,null,null,null,null,null,null,0]
[null,null,null,null,null,null,null,null,null,null,null,null,null,null,null,null,null,null,null,null,0]
[null,null,null,null,null,null,null,null,null,null,null,null,null,null,null,null,null,null,null,null,{"$f":"I645+K645+M645+O645+Q645","v":0}]
[null,null,null,null,null,null,null,null,null,null,null,null,null,null,null,null,null,null,null,null,0]
[null,null,null,null,null,null,null,null,null,null,null,null,null,null,null,null,null,null,null,null,0]
[null,null,null,null,null,null,null,null,null,null,null,null,null,null,null,null,null,null,null,null,0]
[null,null,null,null,null,null,null,null,null,null,null,null,null,null,null,null,null,null,null,null,0]
[null,null,null,null,null,null,null,null,null,null,null,null,null,null,null,null,null,null,null,null,0]
[null,null,null,null,null,null,null,null,null,null,null,null,null,null,null,null,null,null,null,null,0]
[null,null,null,null,null,null,null,null,null,null,null,null,null,null,null,null,null,null,null,null,0]
[null,null,null,null,null,null,null,null,null,null,null,null,null,null,null,null,null,null,null,null,0]
[null,null,null,null,null,null,null,null,null,null,null,null,null,null,null,null,null,null,null,null,0]
[null,null,null,null,null,null,null,null,null,null,null,null,null,null,null,null,null,null,null,null,0]
[null,null,null,null,null,null,null,null,null,null,null,null,null,null,null,null,null,null,null,null,0]
[null,null,null,null,null,null,null,null,null,null,null,null,null,null,null,null,null,null,null,null,0]
[null,null,null,null,null,null,null,null,null,null,null,null,null,null,null,null,null,null,null,null,0]
[null,null,null,null,null,null,null,null,null,null,null,null,null,null,null,null,null,null,null,null,0]
[null,null,null,null,null,null,null,null,null,null,null,null,null,null,null,null,null,null,null,null,0]
[null,null,null,null,null,null,null,null,null,null,null,null,null,null,null,null,null,null,null,null,0]
[null,null,null,null,null,null,null,null,null,null,null,null,null,null,null,null,null,null,null,null,0]
[null,null,null,null,null,null,null,null,null,null,null,null,null,null,null,null,null,null,null,null,0]
[null,null,null,null,null,null,null,null,null,null,null,null,null,null,null,null,null,null,null,null,0]
[null,null,null,null,null,null,null,null,null,null,null,null,null,null,null,null,null,null,null,null,0]
[null,null,null,null,null,null,null,null,null,null,null,null,null,null,null,null,null,null,null,null,0]
[null,null,null,null,null,null,null,null,null,null,null,null,null,null,null,null,null,null,null,null,0]
[null,null,null,null,null,null,null,null,null,null,null,null,null,null,null,null,null,null,null,null,0]
[null,null,null,null,null,null,null,null,null,null,null,null,null,null,null,null,null,null,null,null,0]
[null,null,null,null,null,null,null,null,null,null,null,null,null,null,null,null,null,null,null,null,0]
[null,null,null,null,null,null,null,null,null,null,null,null,null,null,null,null,null,null,null,null,0]
[null,null,null,null,null,null,null,null,null,null,null,null,null,null,null,null,null,null,null,null,0]
[null,null,null,null,null,null,null,null,null,null,null,null,null,null,null,null,null,null,null,null,0]
[null,null,null,null,null,null,null,null,null,null,null,null,null,null,null,null,null,null,null,null,0]
[null,null,null,null,null,null,null,null,null,null,null,null,null,null,null,null,null,null,null,null,0]
[null,null,null,null,null,null,null,null,null,null,null,null,null,null,null,null,null,null,null,null,0]
[null,null,null,null,null,null,null,null,null,null,null,null,null,null,null,null,null,null,null,null,0]
[null,null,null,null,null,null,null,null,null,null,null,null,null,null,null,null,null,null,null,null,0]
[null,null,null,null,null,null,null,null,null,null,null,null,null,null,null,null,null,null,null,null,0]
[null,null,null,null,null,null,null,null,null,null,null,null,null,null,null,null,null,null,null,null,0]
[null,null,null,null,null,null,null,null,null,null,null,null,null,null,null,null,null,null,null,null,0]
[null,null,null,null,null,null,null,null,null,null,null,null,null,null,null,null,null,null,null,null,0]
[null,null,null,null,null,null,null,null,null,null,null,null,null,null,null,null,null,null,null,null,0]
[null,null,null,null,null,null,null,null,null,null,null,null,null,null,null,null,null,null,null,null,0]
[null,null,null,null,null,null,null,null,null,null,null,null,null,null,null,null,null,null,null,null,0]
[null,null,null,null,null,null,null,null,null,null,null,null,null,null,null,null,null,null,null,null,0]
[null,null,null,null,null,null,null,null,null,null,null,null,null,null,null,null,null,null,null,null,0]
[null,null,null,null,null,null,null,null,null,null,null,null,null,null,null,null,null,null,null,null,0]
[null,null,null,null,null,null,null,null,null,null,null,null,null,null,null,null,null,null,null,null,0]
[null,null,null,null,null,null,null,null,null,null,null,null,null,null,null,null,null,null,null,null,0]
[null,null,null,null,null,null,null,null,null,null,null,null,null,null,null,null,null,null,null,null,0]
[null,null,null,null,null,null,null,null,null,null,null,null,null,null,null,null,null,null,null,null,0]
[null,null,null,null,null,null,null,null,null,null,null,null,null,null,null,null,null,null,null,null,0]
[null,null,null,null,null,null,null,null,null,null,null,null,null,null,null,null,null,null,null,null,0]
[null,null,null,null,null,null,null,null,null,null,null,null,null,null,null,null,null,null,null,null,0]
[null,null,null,null,null,null,null,null,null,null,null,null,null,null,null,null,null,null,null,null,0]
[null,null,null,null,null,null,null,null,null,null,null,null,null,null,null,null,null,null,null,null,0]
[null,null,null,null,null,null,null,null,null,null,null,null,null,null,null,null,null,null,null,null,0]
[null,null,null,null,null,null,null,null,null,null,null,null,null,null,null,null,null,null,null,null,0]
[null,null,null,null,null,null,null,null,null,null,null,null,null,null,null,null,null,null,null,null,0]
[null,null,null,null,null,null,null,null,null,null,null,null,null,null,null,null,null,null,null,null,0]
[null,null,null,null,null,null,null,null,null,null,null,null,null,null,null,null,null,null,null,null,0]
[null,null,null,null,null,null,null,null,null,null,null,null,null,null,null,null,null,null,null,null,0]
[null,null,null,null,null,null,null,null,null,null,null,null,null,null,null,null,null,null,null,null,0]
[null,null,null,null,null,null,null,null,null,null,null,null,null,null,null,null,null,null,null,null,0]
[null,null,null,null,null,null,null,null,null,null,null,null,null,null,null,null,null,null,null,null,0]
[null,null,null,null,null,null,null,null,null,null,null,null,null,null,null,null,null,null,null,null,0]
[null,null,null,null,null,null,null,null,null,null,null,null,null,null,null,null,null,null,null,null,0]
[null,null,null,null,null,null,null,null,null,null,null,null,null,null,null,null,null,null,null,null,{"$f":"I709+K709+M709+O709+Q709","v":0}]
[null,null,null,null,null,null,null,null,null,null,null,null,null,null,null,null,null,null,null,null,0]
[null,null,null,null,null,null,null,null,null,null,null,null,null,null,null,null,null,null,null,null,0]
[null,null,null,null,null,null,null,null,null,null,null,null,null,null,null,null,null,null,null,null,0]
[null,null,null,null,null,null,null,null,null,null,null,null,null,null,null,null,null,null,null,null,0]
[null,null,null,null,null,null,null,null,null,null,null,null,null,null,null,null,null,null,null,null,0]
[null,null,null,null,null,null,null,null,null,null,null,null,null,null,null,null,null,null,null,null,0]
[null,null,null,null,null,null,null,null,null,null,null,null,null,null,null,null,null,null,null,null,0]
[null,null,null,null,null,null,null,null,null,null,null,null,null,null,null,null,null,null,null,null,0]
[null,null,null,null,null,null,null,null,null,null,null,null,null,null,null,null,null,null,null,null,0]
[null,null,null,null,null,null,null,null,null,null,null,null,null,null,null,null,null,null,null,null,0]
[null,null,null,null,null,null,null,null,null,null,null,null,null,null,null,null,null,null,null,null,0]
[null,null,null,null,null,null,null,null,null,null,null,null,null,null,null,null,null,null,null,null,0]
[null,null,null,null,null,null,null,null,null,null,null,null,null,null,null,null,null,null,null,null,0]
[null,null,null,null,null,null,null,null,null,null,null,null,null,null,null,null,null,null,null,null,0]
[null,null,null,null,null,null,null,null,null,null,null,null,null,null,null,null,null,null,null,null,0]
[null,null,null,null,null,null,null,null,null,null,null,null,null,null,null,null,null,null,null,null,0]
[null,null,null,null,null,null,null,null,null,null,null,null,null,null,null,null,null,null,null,null,0]
[null,null,null,null,null,null,null,null,null,null,null,null,null,null,null,null,null,null,null,null,0]
[null,null,null,null,null,null,null,null,null,null,null,null,null,null,null,null,null,null,null,null,0]
[null,null,null,null,null,null,null,null,null,null,null,null,null,null,null,null,null,null,null,null,0]
[null,null,null,null,null,null,null,null,null,null,null,null,null,null,null,null,null,null,null,null,0]
[null,null,null,null,null,null,null,null,null,null,null,null,null,null,null,null,null,null,null,null,0]
[null,null,null,null,null,null,null,null,null,null,null,null,null,null,null,null,null,null,null,null,0]
[null,null,null,null,null,null,null,null,null,null,null,null,null,null,null,null,null,null,null,null,0]
[null,null,null,null,null,null,null,null,null,null,null,null,null,null,null,null,null,null,null,null,0]
[null,null,null,null,null,null,null,null,null,null,null,null,null,null,null,null,null,null,null,null,0]
[null,null,null,null,null,null,null,null,null,null,null,null,null,null,null,null,null,null,null,null,0]
[null,null,null,null,null,null,null,null,null,null,null,null,null,null,null,null,null,null,null,null,0]
[null,null,null,null,null,null,null,null,null,null,null,null,null,null,null,null,null,null,null,null,0]
[null,null,null,null,null,null,null,null,null,null,null,null,null,null,null,null,null,null,null,null,0]
[null,null,null,null,null,null,null,null,null,null,null,null,null,null,null,null,null,null,null,null,0]
[null,null,null,null,null,null,null,null,null,null,null,null,null,null,null,null,null,null,null,null,0]
[null,null,null,null,null,null,null,null,null,null,null,null,null,null,null,null,null,null,null,null,0]
[null,null,null,null,null,null,null,null,null,null,null,null,null,null,null,null,null,null,null,null,0]
[null,null,null,null,null,null,null,null,null,null,null,null,null,null,null,null,null,null,null,null,0]
[null,null,null,null,null,null,null,null,null,null,null,null,null,null,null,null,null,null,null,null,0]
[null,null,null,null,null,null,null,null,null,null,null,null,null,null,null,null,null,null,null,null,0]
[null,null,null,null,null,null,null,null,null,null,null,null,null,null,null,null,null,null,null,null,0]
[null,null,null,null,null,null,null,null,null,null,null,null,null,null,null,null,null,null,null,null,0]
[null,null,null,null,null,null,null,null,null,null,null,null,null,null,null,null,null,null,null,null,0]
[null,null,null,null,null,null,null,null,null,null,null,null,null,null,null,null,null,null,null,null,0]
[null,null,null,null,null,null,null,null,null,null,null,null,null,null,null,null,null,null,null,null,0]
[null,null,null,null,null,null,null,null,null,null,null,null,null,null,null,null,null,null,null,null,0]
[null,null,null,null,null,null,null,null,null,null,null,null,null,null,null,null,null,null,null,null,0]
[null,null,null,null,null,null,null,null,null,null,null,null,null,null,null,null,null,null,null,null,0]
[null,null,null,null,null,null,null,null,null,null,null,null,null,null,null,null,null,null,null,null,0]
[null,null,null,null,null,null,null,null,null,null,null,null,null,null,null,null,null,null,null,null,0]
[null,null,null,null,null,null,null,null,null,null,null,null,null,null,null,null,null,null,null,null,0]
[null,null,null,null,null,null,null,null,null,null,null,null,null,null,null,null,null,null,null,null,0]
[null,null,null,null,null,null,null,null,null,null,null,null,null,null,null,null,null,null,null,null,0]
[null,null,null,null,null,null,null,null,null,null,null,null,null,null,null,null,null,null,null,null,0]
[null,null,null,null,null,null,null,null,null,null,null,null,null,null,null,null,null,null,null,null,0]
[null,null,null,null,null,null,null,null,null,null,null,null,null,null,null,null,null,null,null,null,0]
[null,null,null,null,null,null,null,null,null,null,null,null,null,null,null,null,null,null,null,null,0]
[null,null,null,null,null,null,null,null,null,null,null,null,null,null,null,null,null,null,null,null,0]
[null,null,null,null,null,null,null,null,null,null,null,null,null,null,null,null,null,null,null,null,0]
[null,null,null,null,null,null,null,null,null,null,null,null,null,null,null,null,null,null,null,null,0]
[null,null,null,null,null,null,null,null,null,null,null,null,null,null,null,null,null,null,null,null,0]
[null,null,null,null,null,null,null,null,null,null,null,null,null,null,null,null,null,null,null,null,0]
[null,null,null,null,null,null,null,null,null,null,null,null,null,null,null,null,null,null,null,null,0]
[null,null,null,null,null,null,null,null,null,null,null,null,null,null,null,null,null,null,null,null,0]
[null,null,null,null,null,null,null,null,null,null,null,null,null,null,null,null,null,null,null,null,0]
[null,null,null,null,null,null,null,null,null,null,null,null,null,null,null,null,null,null,null,null,0]
[null,null,null,null,null,null,null,null,null,null,null,null,null,null,null,null,null,null,null,null,{"$f":"I773+K773+M773+O773+Q773","v":0}]
[null,null,null,null,null,null,null,null,null,null,null,null,null,null,null,null,null,null,null,null,0]
[null,null,null,null,null,null,null,null,null,null,null,null,null,null,null,null,null,null,null,null,0]
[null,null,null,null,null,null,null,null,null,null,null,null,null,null,null,null,null,null,null,null,0]
[null,null,null,null,null,null,null,null,null,null,null,null,null,null,null,null,null,null,null,null,0]
[null,null,null,null,null,null,null,null,null,null,null,null,null,null,null,null,null,null,null,null,0]
[null,null,null,null,null,null,null,null,null,null,null,null,null,null,null,null,null,null,null,null,0]
[null,null,null,null,null,null,null,null,null,null,null,null,null,null,null,null,null,null,null,null,0]
[null,null,null,null,null,null,null,null,null,null,null,null,null,null,null,null,null,null,null,null,0]
[null,null,null,null,null,null,null,null,null,null,null,null,null,null,null,null,null,null,null,null,0]
[null,null,null,null,null,null,null,null,null,null,null,null,null,null,null,null,null,null,null,null,0]
[null,null,null,null,null,null,null,null,null,null,null,null,null,null,null,null,null,null,null,null,0]
[null,null,null,null,null,null,null,null,null,null,null,null,null,null,null,null,null,null,null,null,0]
[null,null,null,null,null,null,null,null,null,null,null,null,null,null,null,null,null,null,null,null,0]
[null,null,null,null,null,null,null,null,null,null,null,null,null,null,null,null,null,null,null,null,0]
[null,null,null,null,null,null,null,null,null,null,null,null,null,null,null,null,null,null,null,null,0]
[null,null,null,null,null,null,null,null,null,null,null,null,null,null,null,null,null,null,null,null,0]
[null,null,null,null,null,null,null,null,null,null,null,null,null,null,null,null,null,null,null,null,0]
[null,null,null,null,null,null,null,null,null,null,null,null,null,null,null,null,null,null,null,null,0]
[null,null,null,null,null,null,null,null,null,null,null,null,null,null,null,null,null,null,null,null,0]
[null,null,null,null,null,null,null,null,null,null,null,null,null,null,null,null,null,null,null,null,0]
[null,null,null,null,null,null,null,null,null,null,null,null,null,null,null,null,null,null,null,null,0]
[null,null,null,null,null,null,null,null,null,null,null,null,null,null,null,null,null,null,null,null,0]
[null,null,null,null,null,null,null,null,null,null,null,null,null,null,null,null,null,null,null,null,0]
[null,null,null,null,null,null,null,null,null,null,null,null,null,null,null,null,null,null,null,null,0]
[null,null,null,null,null,null,null,null,null,null,null,null,null,null,null,null,null,null,null,null,0]
[null,null,null,null,null,null,null,null,null,null,null,null,null,null,null,null,null,null,null,null,0]
[null,null,null,null,null,null,null,null,null,null,null,null,null,null,null,null,null,null,null,null,0]
[null,null,null,null,null,null,null,null,null,null,null,null,null,null,null,null,null,null,null,null,0]
[null,null,null,null,null,null,null,null,null,null,null,null,null,null,null,null,null,null,null,null,0]
[null,null,null,null,null,null,null,null,null,null,null,null,null,null,null,null,null,null,null,null,0]
[null,null,null,null,null,null,null,null,null,null,null,null,null,null,null,null,null,null,null,null,0]
[null,null,null,null,null,null,null,null,null,null,null,null,null,null,null,null,null,null,null,null,0]
[null,null,null,null,null,null,null,null,null,null,null,null,null,null,null,null,null,null,null,null,0]
[null,null,null,null,null,null,null,null,null,null,null,null,null,null,null,null,null,null,null,null,0]
[null,null,null,null,null,null,null,null,null,null,null,null,null,null,null,null,null,null,null,null,0]
[null,null,null,null,null,null,null,null,null,null,null,null,null,null,null,null,null,null,null,null,0]
[null,null,null,null,null,null,null,null,null,null,null,null,null,null,null,null,null,null,null,null,0]
[null,null,null,null,null,null,null,null,null,null,null,null,null,null,null,null,null,null,null,null,0]
[null,null,null,null,null,null,null,null,null,null,null,null,null,null,null,null,null,null,null,null,0]
[null,null,null,null,null,null,null,null,null,null,null,null,null,null,null,null,null,null,null,null,0]
[null,null,null,null,null,null,null,null,null,null,null,null,null,null,null,null,null,null,null,null,0]
[null,null,null,null,null,null,null,null,null,null,null,null,null,null,null,null,null,null,null,null,0]
[null,null,null,null,null,null,null,null,null,null,null,null,null,null,null,null,null,null,null,null,0]
[null,null,null,null,null,null,null,null,null,null,null,null,null,null,null,null,null,null,null,null,0]
[null,null,null,null,null,null,null,null,null,null,null,null,null,null,null,null,null,null,null,null,0]
[null,null,null,null,null,null,null,null,null,null,null,null,null,null,null,null,null,null,null,null,0]
[null,null,null,null,null,null,null,null,null,null,null,null,null,null,null,null,null,null,null,null,0]
[null,null,null,null,null,null,null,null,null,null,null,null,null,null,null,null,null,null,null,null,0]
[null,null,null,null,null,null,null,null,null,null,null,null,null,null,null,null,null,null,null,null,0]
[null,null,null,null,null,null,null,null,null,null,null,null,null,null,null,null,null,null,null,null,0]
[null,null,null,null,null,null,null,null,null,null,null,null,null,null,null,null,null,null,null,null,0]
[null,null,null,null,null,null,null,null,null,null,null,null,null,null,null,null,null,null,null,null,0]
[null,null,null,null,null,null,null,null,null,null,null,null,null,null,null,null,null,null,null,null,0]
[null,null,null,null,null,null,null,null,null,null,null,null,null,null,null,null,null,null,null,null,0]
[null,null,null,null,null,null,null,null,null,null,null,null,null,null,null,null,null,null,null,null,0]
[null,null,null,null,null,null,null,null,null,null,null,null,null,null,null,null,null,null,null,null,0]
[null,null,null,null,null,null,null,null,null,null,null,null,null,null,null,null,null,null,null,null,0]
[null,null,null,null,null,null,null,null,null,null,null,null,null,null,null,null,null,null,null,null,0]
[null,null,null,null,null,null,null,null,null,null,null,null,null,null,null,null,null,null,null,null,0]
[null,null,null,null,null,null,null,null,null,null,null,null,null,null,null,null,null,null,null,null,0]
[null,null,null,null,null,null,null,null,null,null,null,null,null,null,null,null,null,null,null,null,0]
[null,null,null,null,null,null,null,null,null,null,null,null,null,null,null,null,null,null,null,null,0]
[null,null,null,null,null,null,null,null,null,null,null,null,null,null,null,null,null,null,null,null,0]
[null,null,null,null,null,null,null,null,null,null,null,null,null,null,null,null,null,null,null,null,{"$f":"I837+K837+M837+O837+Q837","v":0}]
[null,null,null,null,null,null,null,null,null,null,null,null,null,null,null,null,null,null,null,null,0]
[null,null,null,null,null,null,null,null,null,null,null,null,null,null,null,null,null,null,null,null,0]
[null,null,null,null,null,null,null,null,null,null,null,null,null,null,null,null,null,null,null,null,0]
[null,null,null,null,null,null,null,null,null,null,null,null,null,null,null,null,null,null,null,null,0]
[null,null,null,null,null,null,null,null,null,null,null,null,null,null,null,null,null,null,null,null,0]
[null,null,null,null,null,null,null,null,null,null,null,null,null,null,null,null,null,null,null,null,0]
[null,null,null,null,null,null,null,null,null,null,null,null,null,null,null,null,null,null,null,null,0]
[null,null,null,null,null,null,null,null,null,null,null,null,null,null,null,null,null,null,null,null,0]
[null,null,null,null,null,null,null,null,null,null,null,null,null,null,null,null,null,null,null,null,0]
[null,null,null,null,null,null,null,null,null,null,null,null,null,null,null,null,null,null,null,null,0]
[null,null,null,null,null,null,null,null,null,null,null,null,null,null,null,null,null,null,null,null,0]
[null,null,null,null,null,null,null,null,null,null,null,null,null,null,null,null,null,null,null,null,0]
[null,null,null,null,null,null,null,null,null,null,null,null,null,null,null,null,null,null,null,null,0]
[null,null,null,null,null,null,null,null,null,null,null,null,null,null,null,null,null,null,null,null,0]
[null,null,null,null,null,null,null,null,null,null,null,null,null,null,null,null,null,null,null,null,0]
[null,null,null,null,null,null,null,null,null,null,null,null,null,null,null,null,null,null,null,null,0]
[null,null,null,null,null,null,null,null,null,null,null,null,null,null,null,null,null,null,null,null,0]
[null,null,null,null,null,null,null,null,null,null,null,null,null,null,null,null,null,null,null,null,0]
[null,null,null,null,null,null,null,null,null,null,null,null,null,null,null,null,null,null,null,null,0]
[null,null,null,null,null,null,null,null,null,null,null,null,null,null,null,null,null,null,null,null,0]
[null,null,null,null,null,null,null,null,null,null,null,null,null,null,null,null,null,null,null,null,0]
[null,null,null,null,null,null,null,null,null,null,null,null,null,null,null,null,null,null,null,null,0]
[null,null,null,null,null,null,null,null,null,null,null,null,null,null,null,null,null,null,null,null,0]
[null,null,null,null,null,null,null,null,null,null,null,null,null,null,null,null,null,null,null,null,0]
[null,null,null,null,null,null,null,null,null,null,null,null,null,null,null,null,null,null,null,null,0]
[null,null,null,null,null,null,null,null,null,null,null,null,null,null,null,null,null,null,null,null,0]
[null,null,null,null,null,null,null,null,null,null,null,null,null,null,null,null,null,null,null,null,0]
[null,null,null,null,null,null,null,null,null,null,null,null,null,null,null,null,null,null,null,null,0]
[null,null,null,null,null,null,null,null,null,null,null,null,null,null,null,null,null,null,null,null,0]
[null,null,null,null,null,null,null,null,null,null,null,null,null,null,null,null,null,null,null,null,0]
[null,null,null,null,null,null,null,null,null,null,null,null,null,null,null,null,null,null,null,null,0]
[null,null,null,null,null,null,null,null,null,null,null,null,null,null,null,null,null,null,null,null,0]
[null,null,null,null,null,null,null,null,null,null,null,null,null,null,null,null,null,null,null,null,0]
[null,null,null,null,null,null,null,null,null,null,null,null,null,null,null,null,null,null,null,null,0]
[null,null,null,null,null,null,null,null,null,null,null,null,null,null,null,null,null,null,null,null,0]
[null,null,null,null,null,null,null,null,null,null,null,null,null,null,null,null,null,null,null,null,0]
[null,null,null,null,null,null,null,null,null,null,null,null,null,null,null,null,null,null,null,null,0]
[null,null,null,null,null,null,null,null,null,null,null,null,null,null,null,null,null,null,null,null,0]
[null,null,null,null,null,null,null,null,null,null,null,null,null,null,null,null,null,null,null,null,0]
[null,null,null,null,null,null,null,null,null,null,null,null,null,null,null,null,null,null,null,null,0]
[null,null,null,null,null,null,null,null,null,null,null,null,null,null,null,null,null,null,null,null,0]
[null,null,null,null,null,null,null,null,null,null,null,null,null,null,null,null,null,null,null,null,0]
[null,null,null,null,null,null,null,null,null,null,null,null,null,null,null,null,null,null,null,null,0]
[null,null,null,null,null,null,null,null,null,null,null,null,null,null,null,null,null,null,null,null,0]
[null,null,null,null,null,null,null,null,null,null,null,null,null,null,null,null,null,null,null,null,0]
[null,null,null,null,null,null,null,null,null,null,null,null,null,null,null,null,null,null,null,null,0]
[null,null,null,null,null,null,null,null,null,null,null,null,null,null,null,null,null,null,null,null,0]
[null,null,null,null,null,null,null,null,null,null,null,null,null,null,null,null,null,null,null,null,0]
[null,null,null,null,null,null,null,null,null,null,null,null,null,null,null,null,null,null,null,null,0]
[null,null,null,null,null,null,null,null,null,null,null,null,null,null,null,null,null,null,null,null,0]
[null,null,null,null,null,null,null,null,null,null,null,null,null,null,null,null,null,null,null,null,0]
[null,null,null,null,null,null,null,null,null,null,null,null,null,null,null,null,null,null,null,null,0]
[null,null,null,null,null,null,null,null,null,null,null,null,null,null,null,null,null,null,null,null,0]
[null,null,null,null,null,null,null,null,null,null,null,null,null,null,null,null,null,null,null,null,0]
[null,null,null,null,null,null,null,null,null,null,null,null,null,null,null,null,null,null,null,null,0]
[null,null,null,null,null,null,null,null,null,null,null,null,null,null,null,null,null,null,null,null,0]
[null,null,null,null,null,null,null,null,null,null,null,null,null,null,null,null,null,null,null,null,0]
[null,null,null,null,null,null,null,null,null,null,null,null,null,null,null,null,null,null,null,null,0]
[null,null,null,null,null,null,null,null,null,null,null,null,null,null,null,null,null,null,null,null,0]
[null,null,null,null,null,null,null,null,null,null,null,null,null,null,null,null,null,null,null,null,0]
[null,null,null,null,null,null,null,null,null,null,null,null,null,null,null,null,null,null,null,null,0]
[null,null,null,null,null,null,null,null,null,null,null,null,null,null,null,null,null,null,null,null,0]
[null,null,null,null,null,null,null,null,null,null,null,null,null,null,null,null,null,null,null,null,0]
[null,null,null,null,null,null,null,null,null,null,null,null,null,null,null,null,null,null,null,null,{"$f":"I901+K901+M901+O901+Q901","v":0}]
[null,null,null,null,null,null,null,null,null,null,null,null,null,null,null,null,null,null,null,null,0]
[null,null,null,null,null,null,null,null,null,null,null,null,null,null,null,null,null,null,null,null,0]
[null,null,null,null,null,null,null,null,null,null,null,null,null,null,null,null,null,null,null,null,0]
[null,null,null,null,null,null,null,null,null,null,null,null,null,null,null,null,null,null,null,null,0]
[null,null,null,null,null,null,null,null,null,null,null,null,null,null,null,null,null,null,null,null,0]
[null,null,null,null,null,null,null,null,null,null,null,null,null,null,null,null,null,null,null,null,0]
[null,null,null,null,null,null,null,null,null,null,null,null,null,null,null,null,null,null,null,null,0]
[null,null,null,null,null,null,null,null,null,null,null,null,null,null,null,null,null,null,null,null,0]
[null,null,null,null,null,null,null,null,null,null,null,null,null,null,null,null,null,null,null,null,0]
[null,null,null,null,null,null,null,null,null,null,null,null,null,null,null,null,null,null,null,null,0]
[null,null,null,null,null,null,null,null,null,null,null,null,null,null,null,null,null,null,null,null,0]
[null,null,null,null,null,null,null,null,null,null,null,null,null,null,null,null,null,null,null,null,0]
[null,null,null,null,null,null,null,null,null,null,null,null,null,null,null,null,null,null,null,null,0]
[null,null,null,null,null,null,null,null,null,null,null,null,null,null,null,null,null,null,null,null,0]
[null,null,null,null,null,null,null,null,null,null,null,null,null,null,null,null,null,null,null,null,0]
[null,null,null,null,null,null,null,null,null,null,null,null,null,null,null,null,null,null,null,null,0]
[null,null,null,null,null,null,null,null,null,null,null,null,null,null,null,null,null,null,null,null,0]
[null,null,null,null,null,null,null,null,null,null,null,null,null,null,null,null,null,null,null,null,0]
[null,null,null,null,null,null,null,null,null,null,null,null,null,null,null,null,null,null,null,null,0]
[null,null,null,null,null,null,null,null,null,null,null,null,null,null,null,null,null,null,null,null,0]
[null,null,null,null,null,null,null,null,null,null,null,null,null,null,null,null,null,null,null,null,0]
[null,null,null,null,null,null,null,null,null,null,null,null,null,null,null,null,null,null,null,null,0]
[null,null,null,null,null,null,null,null,null,null,null,null,null,null,null,null,null,null,null,null,0]
[null,null,null,null,null,null,null,null,null,null,null,null,null,null,null,null,null,null,null,null,0]
[null,null,null,null,null,null,null,null,null,null,null,null,null,null,null,null,null,null,null,null,0]
[null,null,null,null,null,null,null,null,null,null,null,null,null,null,null,null,null,null,null,null,0]
[null,null,null,null,null,null,null,null,null,null,null,null,null,null,null,null,null,null,null,null,0]
[null,null,null,null,null,null,null,null,null,null,null,null,null,null,null,null,null,null,null,null,0]
[null,null,null,null,null,null,null,null,null,null,null,null,null,null,null,null,null,null,null,null,0]
[null,null,null,null,null,null,null,null,null,null,null,null,null,null,null,null,null,null,null,null,0]
[null,null,null,null,null,null,null,null,null,null,null,null,null,null,null,null,null,null,null,null,0]
[null,null,null,null,null,null,null,null,null,null,null,null,null,null,null,null,null,null,null,null,0]
[null,null,null,null,null,null,null,null,null,null,null,null,null,null,null,null,null,null,null,null,0]
[null,null,null,null,null,null,null,null,null,null,null,null,null,null,null,null,null,null,null,null,0]
[null,null,null,null,null,null,null,null,null,null,null,null,null,null,null,null,null,null,null,null,0]
[null,null,null,null,null,null,null,null,null,null,null,null,null,null,null,null,null,null,null,null,0]
[null,null,null,null,null,null,null,null,null,null,null,null,null,null,null,null,null,null,null,null,0]
[null,null,null,null,null,null,null,null,null,null,null,null,null,null,null,null,null,null,null,null,0]
[null,null,null,null,null,null,null,null,null,null,null,null,null,null,null,null,null,null,null,null,0]
[null,null,null,null,null,null,null,null,null,null,null,null,null,null,null,null,null,null,null,null,0]
[null,null,null,null,null,null,null,null,null,null,null,null,null,null,null,null,null,null,null,null,0]
[null,null,null,null,null,null,null,null,null,null,null,null,null,null,null,null,null,null,null,null,0]
[null,null,null,null,null,null,null,null,null,null,null,null,null,null,null,null,null,null,null,null,0]
[null,null,null,null,null,null,null,null,null,null,null,null,null,null,null,null,null,null,null,null,0]
[null,null,null,null,null,null,null,null,null,null,null,null,null,null,null,null,null,null,null,null,0]
[null,null,null,null,null,null,null,null,null,null,null,null,null,null,null,null,null,null,null,null,0]
[null,null,null,null,null,null,null,null,null,null,null,null,null,null,null,null,null,null,null,null,0]
[null,null,null,null,null,null,null,null,null,null,null,null,null,null,null,null,null,null,null,null,0]
[null,null,null,null,null,null,null,null,null,null,null,null,null,null,null,null,null,null,null,null,0]
[null,null,null,null,null,null,null,null,null,null,null,null,null,null,null,null,null,null,null,null,0]
[null,null,null,null,null,null,null,null,null,null,null,null,null,null,null,null,null,null,null,null,0]
[null,null,null,null,null,null,null,null,null,null,null,null,null,null,null,null,null,null,null,null,0]
[null,null,null,null,null,null,null,null,null,null,null,null,null,null,null,null,null,null,null,null,0]
[null,null,null,null,null,null,null,null,null,null,null,null,null,null,null,null,null,null,null,null,0]
[null,null,null,null,null,null,null,null,null,null,null,null,null,null,null,null,null,null,null,null,0]
[null,null,null,null,null,null,null,null,null,null,null,null,null,null,null,null,null,null,null,null,0]
[null,null,null,null,null,null,null,null,null,null,null,null,null,null,null,null,null,null,null,null,0]
[null,null,null,null,null,null,null,null,null,null,null,null,null,null,null,null,null,null,null,null,0]
[null,null,null,null,null,null,null,null,null,null,null,null,null,null,null,null,null,null,null,null,0]
[null,null,null,null,null,null,null,null,null,null,null,null,null,null,null,null,null,null,null,null,0]
[null,null,null,null,null,null,null,null,null,null,null,null,null,null,null,null,null,null,null,null,0]
[null,null,null,null,null,null,null,null,null,null,null,null,null,null,null,null,null,null,null,null,0]
[null,null,null,null,null,null,null,null,null,null,null,null,null,null,null,null,null,null,null,null,0]
[null,null,null,null,null,null,null,null,null,null,null,null,null,null,null,null,null,null,null,null,{"$f":"I965+K965+M965+O965+Q965","v":0}]
[null,null,null,null,null,null,null,null,null,null,null,null,null,null,null,null,null,null,null,null,0]
[null,null,null,null,null,null,null,null,null,null,null,null,null,null,null,null,null,null,null,null,0]
[null,null,null,null,null,null,null,null,null,null,null,null,null,null,null,null,null,null,null,null,0]
[null,null,null,null,null,null,null,null,null,null,null,null,null,null,null,null,null,null,null,null,0]
[null,null,null,null,null,null,null,null,null,null,null,null,null,null,null,null,null,null,null,null,0]
[null,null,null,null,null,null,null,null,null,null,null,null,null,null,null,null,null,null,null,null,0]
[null,null,null,null,null,null,null,null,null,null,null,null,null,null,null,null,null,null,null,null,0]
[null,null,null,null,null,null,null,null,null,null,null,null,null,null,null,null,null,null,null,null,0]
[null,null,null,null,null,null,null,null,null,null,null,null,null,null,null,null,null,null,null,null,0]
[null,null,null,null,null,null,null,null,null,null,null,null,null,null,null,null,null,null,null,null,0]
[null,null,null,null,null,null,null,null,null,null,null,null,null,null,null,null,null,null,null,null,0]
[null,null,null,null,null,null,null,null,null,null,null,null,null,null,null,null,null,null,null,null,0]
[null,null,null,null,null,null,null,null,null,null,null,null,null,null,null,null,null,null,null,null,0]
[null,null,null,null,null,null,null,null,null,null,null,null,null,null,null,null,null,null,null,null,0]
[null,null,null,null,null,null,null,null,null,null,null,null,null,null,null,null,null,null,null,null,0]
[null,null,null,null,null,null,null,null,null,null,null,null,null,null,null,null,null,null,null,null,0]
[null,null,null,null,null,null,null,null,null,null,null,null,null,null,null,null,null,null,null,null,0]
[null,null,null,null,null,null,null,null,null,null,null,null,null,null,null,null,null,null,null,null,0]
[null,null,null,null,null,null,null,null,null,null,null,null,null,null,null,null,null,null,null,null,0]
[null,null,null,null,null,null,null,null,null,null,null,null,null,null,null,null,null,null,null,null,0]
[null,null,null,null,null,null,null,null,null,null,null,null,null,null,null,null,null,null,null,null,0]
[null,null,null,null,null,null,null,null,null,null,null,null,null,null,null,null,null,null,null,null,0]
[null,null,null,null,null,null,null,null,null,null,null,null,null,null,null,null,null,null,null,null,0]
[null,null,null,null,null,null,null,null,null,null,null,null,null,null,null,null,null,null,null,null,0]
[null,null,null,null,null,null,null,null,null,null,null,null,null,null,null,null,null,null,null,null,0]
[null,null,null,null,null,null,null,null,null,null,null,null,null,null,null,null,null,null,null,null,0]
[null,null,null,null,null,null,null,null,null,null,null,null,null,null,null,null,null,null,null,null,0]
[null,null,null,null,null,null,null,null,null,null,null,null,null,null,null,null,null,null,null,null,0]
[null,null,null,null,null,null,null,null,null,null,null,null,null,null,null,null,null,null,null,null,0]
[null,null,null,null,null,null,null,null,null,null,null,null,null,null,null,null,null,null,null,null,0]
[null,null,null,null,null,null,null,null,null,null,null,null,null,null,null,null,null,null,null,null,0]
[null,null,null,null,null,null,null,null,null,null,null,null,null,null,null,null,null,null,null,null,0]
[null,null,null,null,null,null,null,null,null,null,null,null,null,null,null,null,null,null,null,null,0]

{"sheet":"Medewerkers","index":4,"n_rows":9,"n_cols":373,"rows_kept":9,"cut":false,"hidden":false,"merged":[]}
[null,null,null,null,null,null,{"$f":"TRANSPOSE(Instellingen!H4:H369)","v":202601},202602,202603,202604,202605,202606,202607,202608,202609,202610,202611,202612,202613,202614,202615,202616,202617,202618,202619,202620,202621,202622,202623,202624,202625,202626,202627,202628,202629,202630,202631,202632,202633,202634,202635,202636,202637,202638,202639,202640,202641,202642,202643,202644,202645,202646,202647,202648,202649,202650,202651,202652,202653,202701,202702,202703,202704,202705,202706,202707,202708,202709,202710,202711,202712,202713,202714,202715,202716,202717,202718,202719,202720,202721,202722,202723,202724,202725,202726,202727,202728,202729,202730,202731,202732,202733,202734,202735,202736,202737,202738,202739,202740,202741,202742,202743,202744,202745,202746,202747,202748,202749,202750,202751,202752,202801,202802,202803,202804,202805,202806,202807,202808,202809,202810,202811,202812,202813,202814,202815,202816,202817,202818,202819,202820,202821,202822,202823,202824,202825,202826,202827,202828,202829,202830,202831,202832,202833,202834,202835,202836,202837,202838,202839,202840,202841,202842,202843,202844,202845,202846,202847,202848,202849,202850,202851,202852,202901,202902,202903,202904,202905,202906,202907,202908,202909,202910,202911,202912,202913,202914,202915,202916,202917,202918,202919,202920,202921,202922,202923,202924,202925,202926,202927,202928,202929,202930,202931,202932,202933,202934,202935,202936,202937,202938,202939,202940,202941,202942,202943,202944,202945,202946,202947,202948,202949,202950,202951,202952,203001,203002,203003,203004,203005,203006,203007,203008,203009,203010,203011,203012,203013,203014,203015,203016,203017,203018,203019,203020,203021,203022,203023,203024,203025,203026,203027,203028,203029,203030,203031,203032,203033,203034,203035,203036,203037,203038,203039,203040,203041,203042,203043,203044,203045,203046,203047,203048,203049,203050,203051,203052,203101,203102,203103,203104,203105,203106,203107,203108,203109,203110,203111,203112,203113,203114,203115,203116,203117,203118,203119,203120,203121,203122,203123,203124,203125,203126,203127,203128,203129,203130,203131,203132,203133,203134,203135,203136,203137,203138,203139,203140,203141,203142,203143,203144,203145,203146,203147,203148,203149,203150,203151,203152,203201,203202,203203,203204,203205,203206,203207,203208,203209,203210,203211,203212,203213,203214,203215,203216,203217,203218,203219,203220,203221,203222,203223,203224,203225,203226,203227,203228,203229,203230,203231,203232,203233,203234,203235,203236,203237,203238,203239,203240,203241,203242,203243,203244,203245,203246,203247,203248,203249,203250,203251,203252,203253]
[]
[null,"Medewerker:"]
[null,"Tonen in kalender:",2026]
[]
[null,null,null,null,null,null,{"$f":"YEAR(G8)","v":2026},{"$f":"IF(AND(MONTH(H8)=1,MONTH(G8)=12,OR(H9=1,H9=2)),YEAR(H8),\"\")","v":""},{"$f":"IF(AND(MONTH(I8)=1,MONTH(H8)=12,OR(I9=1,I9=2)),YEAR(I8),\"\")","v":""},"","","","","","","","","","","","","","","","","","","","","","","","","","","","","","","","","","","","","","","","","","","","","","","","","","",2027,"","","","","","","","","","","","",{"$f":"IF(AND(MONTH(BU8)=1,MONTH(BT8)=12,OR(BU9=1,BU9=2)),YEAR(BU8),\"\")","v":""},"","","","","","","","","","","","","","","","","","","","","","","","","","","","","","","","","","","","","","",2028,"","","","","","","","","","","","","","","","","","","","","","","","",{"$f":"IF(AND(MONTH(EG8)=1,MONTH(EF8)=12,OR(EG9=1,EG9=2)),YEAR(EG8),\"\")","v":""},"","","","","","","","","","","","","","","","","","","","","","","","","","",2029,"","","","","","","","","","","","","","","","","","","","","","","","","","","","","","","","","","","","",{"$f":"IF(AND(MONTH(GS8)=1,MONTH(GR8)=12,OR(GS9=1,GS9=2)),YEAR(GS8),\"\")","v":""},"","","","","","","","","","","","","","",2030,"","","","","","","","","","","","","","","","","","","","","","","","","","","","","","","","","","","","","","","","","","","","","","","","",{"$f":"IF(AND(MONTH(JE8)=1,MONTH(JD8)=12,OR(JE9=1,JE9=2)),YEAR(JE8),\"\")","v":""},"","",2031,"","","","","","","","","","","","","","","","","","","","","","","","","","","","","","","","","","","","","","","","","","","","","","","","","","","",2032,"","","","","","","","",{"$f":"IF(AND(MONTH(LQ8)=1,MONTH(LP8)=12,OR(LQ9=1,LQ9=2)),YEAR(LQ8),\"\")","v":""},"","","","","","","","","","","","","","","","","","","","","","","","","","","","","","","","","","","","","","","","","","","",{"$f":"Instellingen!J10+1","v":2033}]
[null,null,null,null,null,null,{"$f":"G8","v":"2026-01-01"},{"$f":"H8","v":"2026-01-08"},"2026-01-15","2026-01-22","2026-01-29","2026-02-05","2026-02-12","2026-02-19","2026-02-26","2026-03-05","2026-03-12","2026-03-19","2026-03-26","2026-04-02","2026-04-09","2026-04-16","2026-04-23","2026-04-30","2026-05-07","2026-05-14","2026-05-21","2026-05-28","2026-06-04","2026-06-11","2026-06-18","2026-06-25","2026-07-02","2026-07-09","2026-07-16","2026-07-23","2026-07-30","2026-08-06","2026-08-13","2026-08-20","2026-08-27","2026-09-03","2026-09-10","2026-09-17","2026-09-24","2026-10-01","2026-10-08","2026-10-15","2026-10-22","2026-10-29","2026-11-05","2026-11-12","2026-11-19","2026-11-26","2026-12-03","2026-12-10","2026-12-17","2026-12-24","2026-12-31","2027-01-07","2027-01-14","2027-01-21","2027-01-28","2027-02-04","2027-02-11","2027-02-18","2027-02-25","2027-03-04","2027-03-11","2027-03-18","2027-03-25",{"$f":"BT8","v":"2027-04-01"},"2027-04-08","2027-04-15","2027-04-22","2027-04-29","2027-05-06","2027-05-13","2027-05-20","2027-05-27","2027-06-03","2027-06-10","2027-06-17","2027-06-24","2027-07-01","2027-07-08","2027-07-15","2027-07-22","2027-07-29","2027-08-05","2027-08-12","2027-08-19","2027-08-26","2027-09-02","2027-09-09","2027-09-16","2027-09-23","2027-09-30","2027-10-07","2027-10-14","2027-10-21","2027-10-28","2027-11-04","2027-11-11","2027-11-18","2027-11-25","2027-12-02","2027-12-09","2027-12-16","2027-12-23","2027-12-30","2028-01-06","2028-01-13","2028-01-20","2028-01-27","2028-02-03","2028-02-10","2028-02-17","2028-02-24","2028-03-02","2028-03-09","2028-03-16","2028-03-23","2028-03-30","2028-04-06","2028-04-13","2028-04-20","2028-04-27","2028-05-04","2028-05-11","2028-05-18","2028-05-25","2028-06-01","2028-06-08","2028-06-15",{"$f":"EF8","v":"2028-06-22"},"2028-06-29","2028-07-06","2028-07-13","2028-07-20","2028-07-27","2028-08-03","2028-08-10","2028-08-17","2028-08-24","2028-08-31","2028-09-07","2028-09-14","2028-09-21","2028-09-28","2028-10-05","2028-10-12","2028-10-19","2028-10-26","2028-11-02","2028-11-09","2028-11-16","2028-11-23","2028-11-30","2028-12-07","2028-12-14","2028-12-21","2028-12-28","2029-01-04","2029-01-11","2029-01-18","2029-01-25","2029-02-01","2029-02-08","2029-02-15","2029-02-22","2029-03-01","2029-03-08","2029-03-15","2029-03-22","2029-03-29","2029-04-05","2029-04-12","2029-04-19","2029-04-26","2029-05-03","2029-05-10","2029-05-17","2029-05-24","2029-05-31","2029-06-07","2029-06-14","2029-06-21","2029-06-28","2029-07-05","2029-07-12","2029-07-19","2029-07-26","2029-08-02","2029-08-09","2029-08-16","2029-08-23","2029-08-30","2029-09-06",{"$f":"GR8","v":"2029-09-13"},"2029-09-20","2029-09-27","2029-10-04","2029-10-11","2029-10-18","2029-10-25","2029-11-01","2029-11-08","2029-11-15","2029-11-22","2029-11-29","2029-12-06","2029-12-13","2029-12-20","2029-12-27","2030-01-03","2030-01-10","2030-01-17","2030-01-24","2030-01-31","2030-02-07","2030-02-14","2030-02-21","2030-02-28","2030-03-07","2030-03-14","2030-03-21","2030-03-28","2030-04-04","2030-04-11","2030-04-18","2030-04-25","2030-05-02","2030-05-09","2030-05-16","2030-05-23","2030-05-30","2030-06-06","2030-06-13","2030-06-20","2030-06-27","2030-07-04","2030-07-11","2030-07-18","2030-07-25","2030-08-01","2030-08-08","2030-08-15","2030-08-22","2030-08-29","2030-09-05","2030-09-12","2030-09-19","2030-09-26","2030-10-03","2030-10-10","2030-10-17","2030-10-24","2030-10-31","2030-11-07","2030-11-14","2030-11-21","2030-11-28",{"$f":"JD8","v":"2030-12-05"},"2030-12-12","2030-12-19","2030-12-26","2031-01-02","2031-01-09","2031-01-16","2031-01-23","2031-01-30","2031-02-06","2031-02-13","2031-02-20","2031-02-27","2031-03-06","2031-03-13","2031-03-20","2031-03-27","2031-04-03","2031-04-10","2031-04-17","2031-04-24","2031-05-01","2031-05-08","2031-05-15","2031-05-22","2031-05-29","2031-06-05","2031-06-12","2031-06-19","2031-06-26","2031-07-03","2031-07-10","2031-07-17","2031-07-24","2031-07-31","2031-08-07","2031-08-14","2031-08-21","2031-08-28","2031-09-04","2031-09-11","2031-09-18","2031-09-25","2031-10-02","2031-10-09","2031-10-16","2031-10-23","2031-10-30","2031-11-06","2031-11-13","2031-11-20","2031-11-27","2031-12-04","2031-12-11","2031-12-18","2031-12-25","2032-01-01","2032-01-08","2032-01-15","2032-01-22","2032-01-29","2032-02-05","2032-02-12","2032-02-19",{"$f":"LP8","v":"2032-02-26"},"2032-03-04","2032-03-11","2032-03-18","2032-03-25","2032-04-01","2032-04-08","2032-04-15","2032-04-22","2032-04-29","2032-05-06","2032-05-13","2032-05-20","2032-05-27","2032-06-03","2032-06-10","2032-06-17","2032-06-24","2032-07-01","2032-07-08","2032-07-15","2032-07-22","2032-07-29","2032-08-05","2032-08-12","2032-08-19","2032-08-26","2032-09-02","2032-09-09","2032-09-16","2032-09-23","2032-09-30","2032-10-07","2032-10-14","2032-10-21","2032-10-28","2032-11-04","2032-11-11","2032-11-18","2032-11-25","2032-12-02","2032-12-09","2032-12-16","2032-12-23","2032-12-30"]
[null,null,null,null,null,null,{"$f":"TRANSPOSE(Instellingen!N4:N369)","v":"2026-01-01"},"2026-01-08","2026-01-15","2026-01-22","2026-01-29","2026-02-05","2026-02-12","2026-02-19","2026-02-26","2026-03-05","2026-03-12","2026-03-19","2026-03-26","2026-04-02","2026-04-09","2026-04-16","2026-04-23","2026-04-30","2026-05-07","2026-05-14","2026-05-21","2026-05-28","2026-06-04","2026-06-11","2026-06-18","2026-06-25","2026-07-02","2026-07-09","2026-07-16","2026-07-23","2026-07-30","2026-08-06","2026-08-13","2026-08-20","2026-08-27","2026-09-03","2026-09-10","2026-09-17","2026-09-24","2026-10-01","2026-10-08","2026-10-15","2026-10-22","2026-10-29","2026-11-05","2026-11-12","2026-11-19","2026-11-26","2026-12-03","2026-12-10","2026-12-17","2026-12-24","2026-12-31","2027-01-07","2027-01-14","2027-01-21","2027-01-28","2027-02-04","2027-02-11","2027-02-18","2027-02-25","2027-03-04","2027-03-11","2027-03-18","2027-03-25","2027-04-01","2027-04-08","2027-04-15","2027-04-22","2027-04-29","2027-05-06","2027-05-13","2027-05-20","2027-05-27","2027-06-03","2027-06-10","2027-06-17","2027-06-24","2027-07-01","2027-07-08","2027-07-15","2027-07-22","2027-07-29","2027-08-05","2027-08-12","2027-08-19","2027-08-26","2027-09-02","2027-09-09","2027-09-16","2027-09-23","2027-09-30","2027-10-07","2027-10-14","2027-10-21","2027-10-28","2027-11-04","2027-11-11","2027-11-18","2027-11-25","2027-12-02","2027-12-09","2027-12-16","2027-12-23","2027-12-30","2028-01-06","2028-01-13","2028-01-20","2028-01-27","2028-02-03","2028-02-10","2028-02-17","2028-02-24","2028-03-02","2028-03-09","2028-03-16","2028-03-23","2028-03-30","2028-04-06","2028-04-13","2028-04-20","2028-04-27","2028-05-04","2028-05-11","2028-05-18","2028-05-25","2028-06-01","2028-06-08","2028-06-15","2028-06-22","2028-06-29","2028-07-06","2028-07-13","2028-07-20","2028-07-27","2028-08-03","2028-08-10","2028-08-17","2028-08-24","2028-08-31","2028-09-07","2028-09-14","2028-09-21","2028-09-28","2028-10-05","2028-10-12","2028-10-19","2028-10-26","2028-11-02","2028-11-09","2028-11-16","2028-11-23","2028-11-30","2028-12-07","2028-12-14","2028-12-21","2028-12-28","2029-01-04","2029-01-11","2029-01-18","2029-01-25","2029-02-01","2029-02-08","2029-02-15","2029-02-22","2029-03-01","2029-03-08","2029-03-15","2029-03-22","2029-03-29","2029-04-05","2029-04-12","2029-04-19","2029-04-26","2029-05-03","2029-05-10","2029-05-17","2029-05-24","2029-05-31","2029-06-07","2029-06-14","2029-06-21","2029-06-28","2029-07-05","2029-07-12","2029-07-19","2029-07-26","2029-08-02","2029-08-09","2029-08-16","2029-08-23","2029-08-30","2029-09-06","2029-09-13","2029-09-20","2029-09-27","2029-10-04","2029-10-11","2029-10-18","2029-10-25","2029-11-01","2029-11-08","2029-11-15","2029-11-22","2029-11-29","2029-12-06","2029-12-13","2029-12-20","2029-12-27","2030-01-03","2030-01-10","2030-01-17","2030-01-24","2030-01-31","2030-02-07","2030-02-14","2030-02-21","2030-02-28","2030-03-07","2030-03-14","2030-03-21","2030-03-28","2030-04-04","2030-04-11","2030-04-18","2030-04-25","2030-05-02","2030-05-09","2030-05-16","2030-05-23","2030-05-30","2030-06-06","2030-06-13","2030-06-20","2030-06-27","2030-07-04","2030-07-11","2030-07-18","2030-07-25","2030-08-01","2030-08-08","2030-08-15","2030-08-22","2030-08-29","2030-09-05","2030-09-12","2030-09-19","2030-09-26","2030-10-03","2030-10-10","2030-10-17","2030-10-24","2030-10-31","2030-11-07","2030-11-14","2030-11-21","2030-11-28","2030-12-05","2030-12-12","2030-12-19","2030-12-26","2031-01-02","2031-01-09","2031-01-16","2031-01-23","2031-01-30","2031-02-06","2031-02-13","2031-02-20","2031-02-27","2031-03-06","2031-03-13","2031-03-20","2031-03-27","2031-04-03","2031-04-10","2031-04-17","2031-04-24","2031-05-01","2031-05-08","2031-05-15","2031-05-22","2031-05-29","2031-06-05","2031-06-12","2031-06-19","2031-06-26","2031-07-03","2031-07-10","2031-07-17","2031-07-24","2031-07-31","2031-08-07","2031-08-14","2031-08-21","2031-08-28","2031-09-04","2031-09-11","2031-09-18","2031-09-25","2031-10-02","2031-10-09","2031-10-16","2031-10-23","2031-10-30","2031-11-06","2031-11-13","2031-11-20","2031-11-27","2031-12-04","2031-12-11","2031-12-18","2031-12-25","2032-01-01","2032-01-08","2032-01-15","2032-01-22","2032-01-29","2032-02-05","2032-02-12","2032-02-19","2032-02-26","2032-03-04","2032-03-11","2032-03-18","2032-03-25","2032-04-01","2032-04-08","2032-04-15","2032-04-22","2032-04-29","2032-05-06","2032-05-13","2032-05-20","2032-05-27","2032-06-03","2032-06-10","2032-06-17","2032-06-24","2032-07-01","2032-07-08","2032-07-15","2032-07-22","2032-07-29","2032-08-05","2032-08-12","2032-08-19","2032-08-26","2032-09-02","2032-09-09","2032-09-16","2032-09-23","2032-09-30","2032-10-07","2032-10-14","2032-10-21","2032-10-28","2032-11-04","2032-11-11","2032-11-18","2032-11-25","2032-12-02","2032-12-09","2032-12-16","2032-12-23","2032-12-30"]
[null,"Medewerker","Projectnaam","Startdatum (week)","Einddatum (week)","Aantal uren",{"$f":"WEEKNUM(G8,21)","v":1},{"$f":"WEEKNUM(H8,21)","v":2},3,4,5,6,7,8,9,10,11,12,13,14,15,16,17,18,19,20,21,22,23,24,25,26,27,28,29,30,31,32,33,34,35,36,37,38,39,40,41,42,43,44,45,46,47,48,49,50,51,52,53,1,2,3,4,5,6,7,8,9,10,11,12,{"$f":"WEEKNUM(BT8,21)","v":13},14,15,16,17,18,19,20,21,22,23,24,25,26,27,28,29,30,31,32,33,34,35,36,37,38,39,40,41,42,43,44,45,46,47,48,49,50,51,52,1,2,3,4,5,6,7,8,9,10,11,12,13,14,15,16,17,18,19,20,21,22,23,24,{"$f":"WEEKNUM(EF8,21)","v":25},26,27,28,29,30,31,32,33,34,35,36,37,38,39,40,41,42,43,44,45,46,47,48,49,50,51,52,1,2,3,4,5,6,7,8,9,10,11,12,13,14,15,16,17,18,19,20,21,22,23,24,25,26,27,28,29,30,31,32,33,34,35,36,{"$f":"WEEKNUM(GR8,21)","v":37},38,39,40,41,42,43,44,45,46,47,48,49,50,51,52,1,2,3,4,5,6,7,8,9,10,11,12,13,14,15,16,17,18,19,20,21,22,23,24,25,26,27,28,29,30,31,32,33,34,35,36,37,38,39,40,41,42,43,44,45,46,47,48,{"$f":"WEEKNUM(JD8,21)","v":49},50,51,52,1,2,3,4,5,6,7,8,9,10,11,12,13,14,15,16,17,18,19,20,21,22,23,24,25,26,27,28,29,30,31,32,33,34,35,36,37,38,39,40,41,42,43,44,45,46,47,48,49,50,51,52,1,2,3,4,5,6,7,8,{"$f":"WEEKNUM(LP8,21)","v":9},10,11,12,13,14,15,16,17,18,19,20,21,22,23,24,25,26,27,28,29,30,31,32,33,34,35,36,37,38,39,40,41,42,43,44,45,46,47,48,49,50,51,52,53]

{"sheet":"Instellingen","index":5,"n_rows":369,"n_cols":15,"rows_kept":369,"cut":false,"hidden":false,"merged":[]}
["*","info@terzake-excel.nl"]
["(","0317 200 009"]
[null,"Naam medewerker",null,"Mogelijke acties",null,"Status",null,"Weken",null,"Jaren",null,"Startdatum",null,"Datumreeks","Week"]
[null,null,null,"Planning",null,"In voorbereiding",null,{"$f":"IF(LEN(O4)=1,CONCATENATE(YEAR(N4),0,O4),CONCATENATE(YEAR(N4),O4))*1","v":202601},null,2026,null,{"$f":"DATE(J4,1,1)","v":"2026-01-01"},null,{"$f":"L4","v":"2026-01-01"},{"$f":"_xlfn.ISOWEEKNUM(N4)","v":1}]
[null,null,null,"Optimalisatie",null,"Lopend",null,{"$f":"IF(LEN(O5)=1,CONCATENATE(YEAR(N5),0,O5),CONCATENATE(YEAR(N5),O5))*1","v":202602},null,{"$f":"J4+1","v":2027},null,null,null,{"$f":"N4+7","v":"2026-01-08"},{"$f":"_xlfn.ISOWEEKNUM(N5)","v":2}]
[null,null,null,null,null,"Afgerond",null,202603,null,{"$f":"J5+1","v":2028},null,null,null,{"$f":"N5+7","v":"2026-01-15"},3]
[null,null,null,null,null,null,null,202604,null,2029,null,null,null,"2026-01-22",4]
[null,null,null,null,null,null,null,202605,null,2030,null,null,null,"2026-01-29",5]
[null,null,null,null,null,null,null,202606,null,2031,null,null,null,"2026-02-05",6]
[null,null,null,null,null,null,null,202607,null,2032,null,null,null,"2026-02-12",7]
[null,null,null,null,null,null,null,202608,null,null,null,null,null,"2026-02-19",8]
[null,null,null,null,null,null,null,202609,null,null,null,null,null,"2026-02-26",9]
[null,null,null,null,null,null,null,202610,null,null,null,null,null,"2026-03-05",10]
[null,null,null,null,null,null,null,202611,null,null,null,null,null,"2026-03-12",11]
[null,null,null,null,null,null,null,202612,null,null,null,null,null,"2026-03-19",12]
[null,null,null,null,null,null,null,202613,null,null,null,null,null,"2026-03-26",13]
[null,null,null,null,null,null,null,202614,null,null,null,null,null,"2026-04-02",14]
[null,null,null,null,null,null,null,202615,null,null,null,null,null,"2026-04-09",15]
[null,null,null,null,null,null,null,202616,null,null,null,null,null,"2026-04-16",16]
[null,null,null,null,null,null,null,202617,null,null,null,null,null,"2026-04-23",17]
[null,null,null,null,null,null,null,202618,null,null,null,null,null,"2026-04-30",18]
[null,null,null,null,null,null,null,202619,null,null,null,null,null,"2026-05-07",19]
[null,null,null,null,null,null,null,202620,null,null,null,null,null,"2026-05-14",20]
[null,null,null,null,null,null,null,202621,null,null,null,null,null,"2026-05-21",21]
[null,null,null,null,null,null,null,202622,null,null,null,null,null,"2026-05-28",22]
[null,null,null,null,null,null,null,202623,null,null,null,null,null,"2026-06-04",23]
[null,null,null,null,null,null,null,202624,null,null,null,null,null,"2026-06-11",24]
[null,null,null,null,null,null,null,202625,null,null,null,null,null,"2026-06-18",25]
[null,null,null,null,null,null,null,202626,null,null,null,null,null,"2026-06-25",26]
[null,null,null,null,null,null,null,202627,null,null,null,null,null,"2026-07-02",27]
[null,null,null,null,null,null,null,202628,null,null,null,null,null,"2026-07-09",28]
[null,null,null,null,null,null,null,202629,null,null,null,null,null,"2026-07-16",29]
[null,null,null,null,null,null,null,202630,null,null,null,null,null,"2026-07-23",30]
[null,null,null,null,null,null,null,202631,null,null,null,null,null,"2026-07-30",31]
[null,null,null,null,null,null,null,202632,null,null,null,null,null,"2026-08-06",32]
[null,null,null,null,null,null,null,202633,null,null,null,null,null,"2026-08-13",33]
[null,null,null,null,null,null,null,202634,null,null,null,null,null,"2026-08-20",34]
[null,null,null,null,null,null,null,202635,null,null,null,null,null,"2026-08-27",35]
[null,null,null,null,null,null,null,202636,null,null,null,null,null,"2026-09-03",36]
[null,null,null,null,null,null,null,202637,null,null,null,null,null,"2026-09-10",37]
[null,null,null,null,null,null,null,202638,null,null,null,null,null,"2026-09-17",38]
[null,null,null,null,null,null,null,202639,null,null,null,null,null,"2026-09-24",39]
[null,null,null,null,null,null,null,202640,null,null,null,null,null,"2026-10-01",40]
[null,null,null,null,null,null,null,202641,null,null,null,null,null,"2026-10-08",41]
[null,null,null,null,null,null,null,202642,null,null,null,null,null,"2026-10-15",42]
[null,null,null,null,null,null,null,202643,null,null,null,null,null,"2026-10-22",43]
[null,null,null,null,null,null,null,202644,null,null,null,null,null,"2026-10-29",44]
[null,null,null,null,null,null,null,202645,null,null,null,null,null,"2026-11-05",45]
[null,null,null,null,null,null,null,202646,null,null,null,null,null,"2026-11-12",46]
[null,null,null,null,null,null,null,202647,null,null,null,null,null,"2026-11-19",47]
[null,null,null,null,null,null,null,202648,null,null,null,null,null,"2026-11-26",48]
[null,null,null,null,null,null,null,202649,null,null,null,null,null,"2026-12-03",49]
[null,null,null,null,null,null,null,202650,null,null,null,null,null,"2026-12-10",50]
[null,null,null,null,null,null,null,202651,null,null,null,null,null,"2026-12-17",51]
[null,null,null,null,null,null,null,202652,null,null,null,null,null,"2026-12-24",52]
[null,null,null,null,null,null,null,202653,null,null,null,null,null,"2026-12-31",53]
[null,null,null,null,null,null,null,202701,null,null,null,null,null,"2027-01-07",1]
[null,null,null,null,null,null,null,202702,null,null,null,null,null,"2027-01-14",2]
[null,null,null,null,null,null,null,202703,null,null,null,null,null,"2027-01-21",3]
[null,null,null,null,null,null,null,202704,null,null,null,null,null,"2027-01-28",4]
[null,null,null,null,null,null,null,202705,null,null,null,null,null,"2027-02-04",5]
[null,null,null,null,null,null,null,202706,null,null,null,null,null,"2027-02-11",6]
[null,null,null,null,null,null,null,202707,null,null,null,null,null,"2027-02-18",7]
[null,null,null,null,null,null,null,202708,null,null,null,null,null,"2027-02-25",8]
[null,null,null,null,null,null,null,202709,null,null,null,null,null,"2027-03-04",9]
[null,null,null,null,null,null,null,202710,null,null,null,null,null,"2027-03-11",10]
[null,null,null,null,null,null,null,202711,null,null,null,null,null,"2027-03-18",11]
[null,null,null,null,null,null,null,202712,null,null,null,null,null,"2027-03-25",12]
[null,null,null,null,null,null,null,{"$f":"IF(LEN(O69)=1,CONCATENATE(YEAR(N69),0,O69),CONCATENATE(YEAR(N69),O69))*1","v":202713},null,null,null,null,null,"2027-04-01",{"$f":"_xlfn.ISOWEEKNUM(N69)","v":13}]
[null,null,null,null,null,null,null,202714,null,null,null,null,null,{"$f":"N69+7","v":"2027-04-08"},14]
[null,null,null,null,null,null,null,202715,null,null,null,null,null,"2027-04-15",15]
[null,null,null,null,null,null,null,202716,null,null,null,null,null,"2027-04-22",16]
[null,null,null,null,null,null,null,202717,null,null,null,null,null,"2027-04-29",17]
[null,null,null,null,null,null,null,202718,null,null,null,null,null,"2027-05-06",18]
[null,null,null,null,null,null,null,202719,null,null,null,null,null,"2027-05-13",19]
[null,null,null,null,null,null,null,202720,null,null,null,null,null,"2027-05-20",20]
[null,null,null,null,null,null,null,202721,null,null,null,null,null,"2027-05-27",21]
[null,null,null,null,null,null,null,202722,null,null,null,null,null,"2027-06-03",22]
[null,null,null,null,null,null,null,202723,null,null,null,null,null,"2027-06-10",23]
[null,null,null,null,null,null,null,202724,null,null,null,null,null,"2027-06-17",24]
[null,null,null,null,null,null,null,202725,null,null,null,null,null,"2027-06-24",25]
[null,null,null,null,null,null,null,202726,null,null,null,null,null,"2027-07-01",26]
[null,null,null,null,null,null,null,202727,null,null,null,null,null,"2027-07-08",27]
[null,null,null,null,null,null,null,202728,null,null,null,null,null,"2027-07-15",28]
[null,null,null,null,null,null,null,202729,null,null,null,null,null,"2027-07-22",29]
[null,null,null,null,null,null,null,202730,null,null,null,null,null,"2027-07-29",30]
[null,null,null,null,null,null,null,202731,null,null,null,null,null,"2027-08-05",31]
[null,null,null,null,null,null,null,202732,null,null,null,null,null,"2027-08-12",32]
[null,null,null,null,null,null,null,202733,null,null,null,null,null,"2027-08-19",33]
[null,null,null,null,null,null,null,202734,null,null,null,null,null,"2027-08-26",34]
[null,null,null,null,null,null,null,202735,null,null,null,null,null,"2027-09-02",35]
[null,null,null,null,null,null,null,202736,null,null,null,null,null,"2027-09-09",36]
[null,null,null,null,null,null,null,202737,null,null,null,null,null,"2027-09-16",37]
[null,null,null,null,null,null,null,202738,null,null,null,null,null,"2027-09-23",38]
[null,null,null,null,null,null,null,202739,null,null,null,null,null,"2027-09-30",39]
[null,null,null,null,null,null,null,202740,null,null,null,null,null,"2027-10-07",40]
[null,null,null,null,null,null,null,202741,null,null,null,null,null,"2027-10-14",41]
[null,null,null,null,null,null,null,202742,null,null,null,null,null,"2027-10-21",42]
[null,null,null,null,null,null,null,202743,null,null,null,null,null,"2027-10-28",43]
[null,null,null,null,null,null,null,202744,null,null,null,null,null,"2027-11-04",44]
[null,null,null,null,null,null,null,202745,null,null,null,null,null,"2027-11-11",45]
[null,null,null,null,null,null,null,202746,null,null,null,null,null,"2027-11-18",46]
[null,null,null,null,null,null,null,202747,null,null,null,null,null,"2027-11-25",47]
[null,null,null,null,null,null,null,202748,null,null,null,null,null,"2027-12-02",48]
[null,null,null,null,null,null,null,202749,null,null,null,null,null,"2027-12-09",49]
[null,null,null,null,null,null,null,202750,null,null,null,null,null,"2027-12-16",50]
[null,null,null,null,null,null,null,202751,null,null,null,null,null,"2027-12-23",51]
[null,null,null,null,null,null,null,202752,null,null,null,null,null,"2027-12-30",52]
[null,null,null,null,null,null,null,202801,null,null,null,null,null,"2028-01-06",1]
[null,null,null,null,null,null,null,202802,null,null,null,null,null,"2028-01-13",2]
[null,null,null,null,null,null,null,202803,null,null,null,null,null,"2028-01-20",3]
[null,null,null,null,null,null,null,202804,null,null,null,null,null,"2028-01-27",4]
[null,null,null,null,null,null,null,202805,null,null,null,null,null,"2028-02-03",5]
[null,null,null,null,null,null,null,202806,null,null,null,null,null,"2028-02-10",6]
[null,null,null,null,null,null,null,202807,null,null,null,null,null,"2028-02-17",7]
[null,null,null,null,null,null,null,202808,null,null,null,null,null,"2028-02-24",8]
[null,null,null,null,null,null,null,202809,null,null,null,null,null,"2028-03-02",9]
[null,null,null,null,null,null,null,202810,null,null,null,null,null,"2028-03-09",10]
[null,null,null,null,null,null,null,202811,null,null,null,null,null,"2028-03-16",11]
[null,null,null,null,null,null,null,202812,null,null,null,null,null,"2028-03-23",12]
[null,null,null,null,null,null,null,202813,null,null,null,null,null,"2028-03-30",13]
[null,null,null,null,null,null,null,202814,null,null,null,null,null,"2028-04-06",14]
[null,null,null,null,null,null,null,202815,null,null,null,null,null,"2028-04-13",15]
[null,null,null,null,null,null,null,202816,null,null,null,null,null,"2028-04-20",16]
[null,null,null,null,null,null,null,202817,null,null,null,null,null,"2028-04-27",17]
[null,null,null,null,null,null,null,202818,null,null,null,null,null,"2028-05-04",18]
[null,null,null,null,null,null,null,202819,null,null,null,null,null,"2028-05-11",19]
[null,null,null,null,null,null,null,202820,null,null,null,null,null,"2028-05-18",20]
[null,null,null,null,null,null,null,202821,null,null,null,null,null,"2028-05-25",21]
[null,null,null,null,null,null,null,202822,null,null,null,null,null,"2028-06-01",22]
[null,null,null,null,null,null,null,202823,null,null,null,null,null,"2028-06-08",23]
[null,null,null,null,null,null,null,202824,null,null,null,null,null,"2028-06-15",24]
[null,null,null,null,null,null,null,{"$f":"IF(LEN(O133)=1,CONCATENATE(YEAR(N133),0,O133),CONCATENATE(YEAR(N133),O133))*1","v":202825},null,null,null,null,null,"2028-06-22",{"$f":"_xlfn.ISOWEEKNUM(N133)","v":25}]
[null,null,null,null,null,null,null,202826,null,null,null,null,null,{"$f":"N133+7","v":"2028-06-29"},26]
[null,null,null,null,null,null,null,202827,null,null,null,null,null,"2028-07-06",27]
[null,null,null,null,null,null,null,202828,null,null,null,null,null,"2028-07-13",28]
[null,null,null,null,null,null,null,202829,null,null,null,null,null,"2028-07-20",29]
[null,null,null,null,null,null,null,202830,null,null,null,null,null,"2028-07-27",30]
[null,null,null,null,null,null,null,202831,null,null,null,null,null,"2028-08-03",31]
[null,null,null,null,null,null,null,202832,null,null,null,null,null,"2028-08-10",32]
[null,null,null,null,null,null,null,202833,null,null,null,null,null,"2028-08-17",33]
[null,null,null,null,null,null,null,202834,null,null,null,null,null,"2028-08-24",34]
[null,null,null,null,null,null,null,202835,null,null,null,null,null,"2028-08-31",35]
[null,null,null,null,null,null,null,202836,null,null,null,null,null,"2028-09-07",36]
[null,null,null,null,null,null,null,202837,null,null,null,null,null,"2028-09-14",37]
[null,null,null,null,null,null,null,202838,null,null,null,null,null,"2028-09-21",38]
[null,null,null,null,null,null,null,202839,null,null,null,null,null,"2028-09-28",39]
[null,null,null,null,null,null,null,202840,null,null,null,null,null,"2028-10-05",40]
[null,null,null,null,null,null,null,202841,null,null,null,null,null,"2028-10-12",41]
[null,null,null,null,null,null,null,202842,null,null,null,null,null,"2028-10-19",42]
[null,null,null,null,null,null,null,202843,null,null,null,null,null,"2028-10-26",43]
[null,null,null,null,null,null,null,202844,null,null,null,null,null,"2028-11-02",44]
[null,null,null,null,null,null,null,202845,null,null,null,null,null,"2028-11-09",45]
[null,null,null,null,null,null,null,202846,null,null,null,null,null,"2028-11-16",46]
[null,null,null,null,null,null,null,202847,null,null,null,null,null,"2028-11-23",47]
[null,null,null,null,null,null,null,202848,null,null,null,null,null,"2028-11-30",48]
[null,null,null,null,null,null,null,202849,null,null,null,null,null,"2028-12-07",49]
[null,null,null,null,null,null,null,202850,null,null,null,null,null,"2028-12-14",50]
[null,null,null,null,null,null,null,202851,null,null,null,null,null,"2028-12-21",51]
[null,null,null,null,null,null,null,202852,null,null,null,null,null,"2028-12-28",52]
[null,null,null,null,null,null,null,202901,null,null,null,null,null,"2029-01-04",1]
[null,null,null,null,null,null,null,202902,null,null,null,null,null,"2029-01-11",2]
[null,null,null,null,null,null,null,202903,null,null,null,null,null,"2029-01-18",3]
[null,null,null,null,null,null,null,202904,null,null,null,null,null,"2029-01-25",4]
[null,null,null,null,null,null,null,202905,null,null,null,null,null,"2029-02-01",5]
[null,null,null,null,null,null,null,202906,null,null,null,null,null,"2029-02-08",6]
[null,null,null,null,null,null,null,202907,null,null,null,null,null,"2029-02-15",7]
[null,null,null,null,null,null,null,202908,null,null,null,null,null,"2029-02-22",8]
[null,null,null,null,null,null,null,202909,null,null,null,null,null,"2029-03-01",9]
[null,null,null,null,null,null,null,202910,null,null,null,null,null,"2029-03-08",10]
[null,null,null,null,null,null,null,202911,null,null,null,null,null,"2029-03-15",11]
[null,null,null,null,null,null,null,202912,null,null,null,null,null,"2029-03-22",12]
[null,null,null,null,null,null,null,202913,null,null,null,null,null,"2029-03-29",13]
[null,null,null,null,null,null,null,202914,null,null,null,null,null,"2029-04-05",14]
[null,null,null,null,null,null,null,202915,null,null,null,null,null,"2029-04-12",15]
[null,null,null,null,null,null,null,202916,null,null,null,null,null,"2029-04-19",16]
[null,null,null,null,null,null,null,202917,null,null,null,null,null,"2029-04-26",17]
[null,null,null,null,null,null,null,202918,null,null,null,null,null,"2029-05-03",18]
[null,null,null,null,null,null,null,202919,null,null,null,null,null,"2029-05-10",19]
[null,null,null,null,null,null,null,202920,null,null,null,null,null,"2029-05-17",20]
[null,null,null,null,null,null,null,202921,null,null,null,null,null,"2029-05-24",21]
[null,null,null,null,null,null,null,202922,null,null,null,null,null,"2029-05-31",22]
[null,null,null,null,null,null,null,202923,null,null,null,null,null,"2029-06-07",23]
[null,null,null,null,null,null,null,202924,null,null,null,null,null,"2029-06-14",24]
[null,null,null,null,null,null,null,202925,null,null,null,null,null,"2029-06-21",25]
[null,null,null,null,null,null,null,202926,null,null,null,null,null,"2029-06-28",26]
[null,null,null,null,null,null,null,202927,null,null,null,null,null,"2029-07-05",27]
[null,null,null,null,null,null,null,202928,null,null,null,null,null,"2029-07-12",28]
[null,null,null,null,null,null,null,202929,null,null,null,null,null,"2029-07-19",29]
[null,null,null,null,null,null,null,202930,null,null,null,null,null,"2029-07-26",30]
[null,null,null,null,null,null,null,202931,null,null,null,null,null,"2029-08-02",31]
[null,null,null,null,null,null,null,202932,null,null,null,null,null,"2029-08-09",32]
[null,null,null,null,null,null,null,202933,null,null,null,null,null,"2029-08-16",33]
[null,null,null,null,null,null,null,202934,null,null,null,null,null,"2029-08-23",34]
[null,null,null,null,null,null,null,202935,null,null,null,null,null,"2029-08-30",35]
[null,null,null,null,null,null,null,202936,null,null,null,null,null,"2029-09-06",36]
[null,null,null,null,null,null,null,{"$f":"IF(LEN(O197)=1,CONCATENATE(YEAR(N197),0,O197),CONCATENATE(YEAR(N197),O197))*1","v":202937},null,null,null,null,null,"2029-09-13",{"$f":"_xlfn.ISOWEEKNUM(N197)","v":37}]
[null,null,null,null,null,null,null,202938,null,null,null,null,null,{"$f":"N197+7","v":"2029-09-20"},38]
[null,null,null,null,null,null,null,202939,null,null,null,null,null,"2029-09-27",39]
[null,null,null,null,null,null,null,202940,null,null,null,null,null,"2029-10-04",40]
[null,null,null,null,null,null,null,202941,null,null,null,null,null,"2029-10-11",41]
[null,null,null,null,null,null,null,202942,null,null,null,null,null,"2029-10-18",42]
[null,null,null,null,null,null,null,202943,null,null,null,null,null,"2029-10-25",43]
[null,null,null,null,null,null,null,202944,null,null,null,null,null,"2029-11-01",44]
[null,null,null,null,null,null,null,202945,null,null,null,null,null,"2029-11-08",45]
[null,null,null,null,null,null,null,202946,null,null,null,null,null,"2029-11-15",46]
[null,null,null,null,null,null,null,202947,null,null,null,null,null,"2029-11-22",47]
[null,null,null,null,null,null,null,202948,null,null,null,null,null,"2029-11-29",48]
[null,null,null,null,null,null,null,202949,null,null,null,null,null,"2029-12-06",49]
[null,null,null,null,null,null,null,202950,null,null,null,null,null,"2029-12-13",50]
[null,null,null,null,null,null,null,202951,null,null,null,null,null,"2029-12-20",51]
[null,null,null,null,null,null,null,202952,null,null,null,null,null,"2029-12-27",52]
[null,null,null,null,null,null,null,203001,null,null,null,null,null,"2030-01-03",1]
[null,null,null,null,null,null,null,203002,null,null,null,null,null,"2030-01-10",2]
[null,null,null,null,null,null,null,203003,null,null,null,null,null,"2030-01-17",3]
[null,null,null,null,null,null,null,203004,null,null,null,null,null,"2030-01-24",4]
[null,null,null,null,null,null,null,203005,null,null,null,null,null,"2030-01-31",5]
[null,null,null,null,null,null,null,203006,null,null,null,null,null,"2030-02-07",6]
[null,null,null,null,null,null,null,203007,null,null,null,null,null,"2030-02-14",7]
[null,null,null,null,null,null,null,203008,null,null,null,null,null,"2030-02-21",8]
[null,null,null,null,null,null,null,203009,null,null,null,null,null,"2030-02-28",9]
[null,null,null,null,null,null,null,203010,null,null,null,null,null,"2030-03-07",10]
[null,null,null,null,null,null,null,203011,null,null,null,null,null,"2030-03-14",11]
[null,null,null,null,null,null,null,203012,null,null,null,null,null,"2030-03-21",12]
[null,null,null,null,null,null,null,203013,null,null,null,null,null,"2030-03-28",13]
[null,null,null,null,null,null,null,203014,null,null,null,null,null,"2030-04-04",14]
[null,null,null,null,null,null,null,203015,null,null,null,null,null,"2030-04-11",15]
[null,null,null,null,null,null,null,203016,null,null,null,null,null,"2030-04-18",16]
[null,null,null,null,null,null,null,203017,null,null,null,null,null,"2030-04-25",17]
[null,null,null,null,null,null,null,203018,null,null,null,null,null,"2030-05-02",18]
[null,null,null,null,null,null,null,203019,null,null,null,null,null,"2030-05-09",19]
[null,null,null,null,null,null,null,203020,null,null,null,null,null,"2030-05-16",20]
[null,null,null,null,null,null,null,203021,null,null,null,null,null,"2030-05-23",21]
[null,null,null,null,null,null,null,203022,null,null,null,null,null,"2030-05-30",22]
[null,null,null,null,null,null,null,203023,null,null,null,null,null,"2030-06-06",23]
[null,null,null,null,null,null,null,203024,null,null,null,null,null,"2030-06-13",24]
[null,null,null,null,null,null,null,203025,null,null,null,null,null,"2030-06-20",25]
[null,null,null,null,null,null,null,203026,null,null,null,null,null,"2030-06-27",26]
[null,null,null,null,null,null,null,203027,null,null,null,null,null,"2030-07-04",27]
[null,null,null,null,null,null,null,203028,null,null,null,null,null,"2030-07-11",28]
[null,null,null,null,null,null,null,203029,null,null,null,null,null,"2030-07-18",29]
[null,null,null,null,null,null,null,203030,null,null,null,null,null,"2030-07-25",30]
[null,null,null,null,null,null,null,203031,null,null,null,null,null,"2030-08-01",31]
[null,null,null,null,null,null,null,203032,null,null,null,null,null,"2030-08-08",32]
[null,null,null,null,null,null,null,203033,null,null,null,null,null,"2030-08-15",33]
[null,null,null,null,null,null,null,203034,null,null,null,null,null,"2030-08-22",34]
[null,null,null,null,null,null,null,203035,null,null,null,null,null,"2030-08-29",35]
[null,null,null,null,null,null,null,203036,null,null,null,null,null,"2030-09-05",36]
[null,null,null,null,null,null,null,203037,null,null,null,null,null,"2030-09-12",37]
[null,null,null,null,null,null,null,203038,null,null,null,null,null,"2030-09-19",38]
[null,null,null,null,null,null,null,203039,null,null,null,null,null,"2030-09-26",39]
[null,null,null,null,null,null,null,203040,null,null,null,null,null,"2030-10-03",40]
[null,null,null,null,null,null,null,203041,null,null,null,null,null,"2030-10-10",41]
[null,null,null,null,null,null,null,203042,null,null,null,null,null,"2030-10-17",42]
[null,null,null,null,null,null,null,203043,null,null,null,null,null,"2030-10-24",43]
[null,null,null,null,null,null,null,203044,null,null,null,null,null,"2030-10-31",44]
[null,null,null,null,null,null,null,203045,null,null,null,null,null,"2030-11-07",45]
[null,null,null,null,null,null,null,203046,null,null,null,null,null,"2030-11-14",46]
[null,null,null,null,null,null,null,203047,null,null,null,null,null,"2030-11-21",47]
[null,null,null,null,null,null,null,203048,null,null,null,null,null,"2030-11-28",48]
[null,null,null,null,null,null,null,{"$f":"IF(LEN(O261)=1,CONCATENATE(YEAR(N261),0,O261),CONCATENATE(YEAR(N261),O261))*1","v":203049},null,null,null,null,null,"2030-12-05",{"$f":"_xlfn.ISOWEEKNUM(N261)","v":49}]
[null,null,null,null,null,null,null,203050,null,null,null,null,null,{"$f":"N261+7","v":"2030-12-12"},50]
[null,null,null,null,null,null,null,203051,null,null,null,null,null,"2030-12-19",51]
[null,null,null,null,null,null,null,203052,null,null,null,null,null,"2030-12-26",52]
[null,null,null,null,null,null,null,203101,null,null,null,null,null,"2031-01-02",1]
[null,null,null,null,null,null,null,203102,null,null,null,null,null,"2031-01-09",2]
[null,null,null,null,null,null,null,203103,null,null,null,null,null,"2031-01-16",3]
[null,null,null,null,null,null,null,203104,null,null,null,null,null,"2031-01-23",4]
[null,null,null,null,null,null,null,203105,null,null,null,null,null,"2031-01-30",5]
[null,null,null,null,null,null,null,203106,null,null,null,null,null,"2031-02-06",6]
[null,null,null,null,null,null,null,203107,null,null,null,null,null,"2031-02-13",7]
[null,null,null,null,null,null,null,203108,null,null,null,null,null,"2031-02-20",8]
[null,null,null,null,null,null,null,203109,null,null,null,null,null,"2031-02-27",9]
[null,null,null,null,null,null,null,203110,null,null,null,null,null,"2031-03-06",10]
[null,null,null,null,null,null,null,203111,null,null,null,null,null,"2031-03-13",11]
[null,null,null,null,null,null,null,203112,null,null,null,null,null,"2031-03-20",12]
[null,null,null,null,null,null,null,203113,null,null,null,null,null,"2031-03-27",13]
[null,null,null,null,null,null,null,203114,null,null,null,null,null,"2031-04-03",14]
[null,null,null,null,null,null,null,203115,null,null,null,null,null,"2031-04-10",15]
[null,null,null,null,null,null,null,203116,null,null,null,null,null,"2031-04-17",16]
[null,null,null,null,null,null,null,203117,null,null,null,null,null,"2031-04-24",17]
[null,null,null,null,null,null,null,203118,null,null,null,null,null,"2031-05-01",18]
[null,null,null,null,null,null,null,203119,null,null,null,null,null,"2031-05-08",19]
[null,null,null,null,null,null,null,203120,null,null,null,null,null,"2031-05-15",20]
[null,null,null,null,null,null,null,203121,null,null,null,null,null,"2031-05-22",21]
[null,null,null,null,null,null,null,203122,null,null,null,null,null,"2031-05-29",22]
[null,null,null,null,null,null,null,203123,null,null,null,null,null,"2031-06-05",23]
[null,null,null,null,null,null,null,203124,null,null,null,null,null,"2031-06-12",24]
[null,null,null,null,null,null,null,203125,null,null,null,null,null,"2031-06-19",25]
[null,null,null,null,null,null,null,203126,null,null,null,null,null,"2031-06-26",26]
[null,null,null,null,null,null,null,203127,null,null,null,null,null,"2031-07-03",27]
[null,null,null,null,null,null,null,203128,null,null,null,null,null,"2031-07-10",28]
[null,null,null,null,null,null,null,203129,null,null,null,null,null,"2031-07-17",29]
[null,null,null,null,null,null,null,203130,null,null,null,null,null,"2031-07-24",30]
[null,null,null,null,null,null,null,203131,null,null,null,null,null,"2031-07-31",31]
[null,null,null,null,null,null,null,203132,null,null,null,null,null,"2031-08-07",32]
[null,null,null,null,null,null,null,203133,null,null,null,null,null,"2031-08-14",33]
[null,null,null,null,null,null,null,203134,null,null,null,null,null,"2031-08-21",34]
[null,null,null,null,null,null,null,203135,null,null,null,null,null,"2031-08-28",35]
[null,null,null,null,null,null,null,203136,null,null,null,null,null,"2031-09-04",36]
[null,null,null,null,null,null,null,203137,null,null,null,null,null,"2031-09-11",37]
[null,null,null,null,null,null,null,203138,null,null,null,null,null,"2031-09-18",38]
[null,null,null,null,null,null,null,203139,null,null,null,null,null,"2031-09-25",39]
[null,null,null,null,null,null,null,203140,null,null,null,null,null,"2031-10-02",40]
[null,null,null,null,null,null,null,203141,null,null,null,null,null,"2031-10-09",41]
[null,null,null,null,null,null,null,203142,null,null,null,null,null,"2031-10-16",42]
[null,null,null,null,null,null,null,203143,null,null,null,null,null,"2031-10-23",43]
[null,null,null,null,null,null,null,203144,null,null,null,null,null,"2031-10-30",44]
[null,null,null,null,null,null,null,203145,null,null,null,null,null,"2031-11-06",45]
[null,null,null,null,null,null,null,203146,null,null,null,null,null,"2031-11-13",46]
[null,null,null,null,null,null,null,203147,null,null,null,null,null,"2031-11-20",47]
[null,null,null,null,null,null,null,203148,null,null,null,null,null,"2031-11-27",48]
[null,null,null,null,null,null,null,203149,null,null,null,null,null,"2031-12-04",49]
[null,null,null,null,null,null,null,203150,null,null,null,null,null,"2031-12-11",50]
[null,null,null,null,null,null,null,203151,null,null,null,null,null,"2031-12-18",51]
[null,null,null,null,null,null,null,203152,null,null,null,null,null,"2031-12-25",52]
[null,null,null,null,null,null,null,203201,null,null,null,null,null,"2032-01-01",1]
[null,null,null,null,null,null,null,203202,null,null,null,null,null,"2032-01-08",2]
[null,null,null,null,null,null,null,203203,null,null,null,null,null,"2032-01-15",3]
[null,null,null,null,null,null,null,203204,null,null,null,null,null,"2032-01-22",4]
[null,null,null,null,null,null,null,203205,null,null,null,null,null,"2032-01-29",5]
[null,null,null,null,null,null,null,203206,null,null,null,null,null,"2032-02-05",6]
[null,null,null,null,null,null,null,203207,null,null,null,null,null,"2032-02-12",7]
[null,null,null,null,null,null,null,203208,null,null,null,null,null,"2032-02-19",8]
[null,null,null,null,null,null,null,{"$f":"IF(LEN(O325)=1,CONCATENATE(YEAR(N325),0,O325),CONCATENATE(YEAR(N325),O325))*1","v":203209},null,null,null,null,null,"2032-02-26",{"$f":"_xlfn.ISOWEEKNUM(N325)","v":9}]
[null,null,null,null,null,null,null,203210,null,null,null,null,null,{"$f":"N325+7","v":"2032-03-04"},10]
[null,null,null,null,null,null,null,203211,null,null,null,null,null,"2032-03-11",11]
[null,null,null,null,null,null,null,203212,null,null,null,null,null,"2032-03-18",12]
[null,null,null,null,null,null,null,203213,null,null,null,null,null,"2032-03-25",13]
[null,null,null,null,null,null,null,203214,null,null,null,null,null,"2032-04-01",14]
[null,null,null,null,null,null,null,203215,null,null,null,null,null,"2032-04-08",15]
[null,null,null,null,null,null,null,203216,null,null,null,null,null,"2032-04-15",16]
[null,null,null,null,null,null,null,203217,null,null,null,null,null,"2032-04-22",17]
[null,null,null,null,null,null,null,203218,null,null,null,null,null,"2032-04-29",18]
[null,null,null,null,null,null,null,203219,null,null,null,null,null,"2032-05-06",19]
[null,null,null,null,null,null,null,203220,null,null,null,null,null,"2032-05-13",20]
[null,null,null,null,null,null,null,203221,null,null,null,null,null,"2032-05-20",21]
[null,null,null,null,null,null,null,203222,null,null,null,null,null,"2032-05-27",22]
[null,null,null,null,null,null,null,203223,null,null,null,null,null,"2032-06-03",23]
[null,null,null,null,null,null,null,203224,null,null,null,null,null,"2032-06-10",24]
[null,null,null,null,null,null,null,203225,null,null,null,null,null,"2032-06-17",25]
[null,null,null,null,null,null,null,203226,null,null,null,null,null,"2032-06-24",26]
[null,null,null,null,null,null,null,203227,null,null,null,null,null,"2032-07-01",27]
[null,null,null,null,null,null,null,203228,null,null,null,null,null,"2032-07-08",28]
[null,null,null,null,null,null,null,203229,null,null,null,null,null,"2032-07-15",29]
[null,null,null,null,null,null,null,203230,null,null,null,null,null,"2032-07-22",30]
[null,null,null,null,null,null,null,203231,null,null,null,null,null,"2032-07-29",31]
[null,null,null,null,null,null,null,203232,null,null,null,null,null,"2032-08-05",32]
[null,null,null,null,null,null,null,203233,null,null,null,null,null,"2032-08-12",33]
[null,null,null,null,null,null,null,203234,null,null,null,null,null,"2032-08-19",34]
[null,null,null,null,null,null,null,203235,null,null,null,null,null,"2032-08-26",35]
[null,null,null,null,null,null,null,203236,null,null,null,null,null,"2032-09-02",36]
[null,null,null,null,null,null,null,203237,null,null,null,null,null,"2032-09-09",37]
[null,null,null,null,null,null,null,203238,null,null,null,null,null,"2032-09-16",38]
[null,null,null,null,null,null,null,203239,null,null,null,null,null,"2032-09-23",39]
[null,null,null,null,null,null,null,203240,null,null,null,null,null,"2032-09-30",40]
[null,null,null,null,null,null,null,203241,null,null,null,null,null,"2032-10-07",41]
[null,null,null,null,null,null,null,203242,null,null,null,null,null,"2032-10-14",42]
[null,null,null,null,null,null,null,203243,null,null,null,null,null,"2032-10-21",43]
[null,null,null,null,null,null,null,203244,null,null,null,null,null,"2032-10-28",44]
[null,null,null,null,null,null,null,203245,null,null,null,null,null,"2032-11-04",45]
[null,null,null,null,null,null,null,203246,null,null,null,null,null,"2032-11-11",46]
[null,null,null,null,null,null,null,203247,null,null,null,null,null,"2032-11-18",47]
[null,null,null,null,null,null,null,203248,null,null,null,null,null,"2032-11-25",48]
[null,null,null,null,null,null,null,203249,null,null,null,null,null,"2032-12-02",49]
[null,null,null,null,null,null,null,203250,null,null,null,null,null,"2032-12-09",50]
[null,null,null,null,null,null,null,203251,null,null,null,null,null,"2032-12-16",51]
[null,null,null,null,null,null,null,203252,null,null,null,null,null,"2032-12-23",52]
[null,null,null,null,null,null,null,203253,null,null,null,null,null,"2032-12-30",53]

{"sheet":"Voorbeeld rapportage","index":6,"n_rows":15,"n_cols":33,"rows_kept":15,"cut":false,"hidden":false,"merged":[]}
[]
[]
[]
[]
[null,null,null,null,null,null,"Dit is een voorbeeldrapportage. Wil je een eigen projectplanning op maat inclusief rapportage? Neem dan contact met ons op!",null,null,null,null,null,null,null,null,null,null,null,null,null,null,null,null,null,null,null,null,null,"Projectnaam","Uren Budget","Uren ingepland"]
["*","info@terzake-excel.nl",null,null,null,null,null,null,null,null,null,null,null,null,null,null,null,null,null,null,null,null,null,null,null,null,null,null,"A",150,100]
["(","0317 200 009",null,null,null,null,"Mogelijke aanvullingen in de rest van de projectplanning zijn onder andere: het inplannen van uren, beschikbaarheid van medewerkers controleren, budget van een projectplanning bijhouden.",null,null,null,null,null,null,null,null,null,null,null,null,null,null,null,null,null,null,null,null,null,"B",360,200]
[null,null,null,null,null,null,null,null,null,null,null,null,null,null,null,null,null,null,null,null,null,null,null,null,null,null,null,null,"C",400,410]
[null,null,null,null,null,null,null,null,null,null,null,null,null,null,null,null,null,null,null,null,null,null,null,null,null,null,null,null,"D",150,200]
[]
[null,null,null,null,null,null,null,null,null,null,null,null,null,null,null,null,null,null,null,null,null,null,null,null,null,null,null,null,null,"2025-Q1","2025-Q2","2025-Q3","2025-Q4"]
[null,null,null,null,null,null,null,null,null,null,null,null,null,null,null,null,null,null,null,null,null,null,null,null,null,null,null,null,"A",1000,1000,2000,3000]
[null,null,null,null,null,null,null,null,null,null,null,null,null,null,null,null,null,null,null,null,null,null,null,null,null,null,null,null,"B",500,1500,500,2000]
[null,null,null,null,null,null,null,null,null,null,null,null,null,null,null,null,null,null,null,null,null,null,null,null,null,null,null,null,"C",3000,2000,4000,1000]
[null,null,null,null,null,null,null,null,null,null,null,null,null,null,null,null,null,null,null,null,null,null,null,null,null,null,null,null,"D",1500,500,2000,500]